{"text_format":"1","workbook":"xlsx","n_sheets":3,"sheets":["①使い方","②入力シート","③出力シート"],"not_rendered":{"charts":0,"images":12,"macros":1,"external_links":1,"defined_names":6,"comments":0,"pivot_tables":0},"unopened":[],"bounds":{"document_bytes":16777216,"sheet_cells":100000,"rows_first":2000,"rows_last":500,"rows_between":2000,"halvings":0,"cell_chars":16384,"cell_head_chars":4096},"cells_cut":0,"cells_raw":0,"read":"whole","date_system":"1900"}

{"sheet":"①使い方","index":0,"n_rows":28,"n_cols":6,"rows_kept":28,"cut":false,"hidden":false,"merged":[]}
["<はじめに>  当ツールの使用にあたり、以下を必ずご確認ください。"]
["・エクセルのマクロを有効にしてください。※推奨環境： Microsoft Office 2010以降"]
["※マクロを搭載しているファイルのため、アラートが表示される場合がございます。"]
["・エクセルファイルを開いた際、ファイルの上部に「セキュリティリスク」のアラートが表示された場合は、マクロが使用できるように以下手順で設定変更の上、ツールをご使用ください。"]
[]
[]
[]
[null,null,"「保護ビュー」に関するアラートが表示された場合、「編集を有効にする」を押下する"]
[]
[]
[]
[]
[null,null,"「セキュリティリスク」のアラートが表示された場合、★3の手順で設定変更処理を行う"]
[]
[]
[]
[]
[]
[]
[]
[]
[]
[]
["当ファイルは３つのシートで構成されています。"]
["①使い方　←本シート",null,null,null,null,"当ツールの使い方を説明しています。"]
["②入力シート",null,null,null,null,"受験者の情報を入力するシートです。"]
["③出力シート",null,null,null,null,"入力した受験者の情報がマークシート記入見本として出力されるシートです。"]
[null,null,null,null,null,"※見本の印刷は【②入力シート】の「印刷」ボタンから行います。"]

{"sheet":"②入力シート","index":1,"n_rows":61,"n_cols":26,"rows_kept":61,"cut":false,"hidden":false,"merged":[[8,4,8,5],[8,6,8,7],[8,8,8,14]]}
[null,"【マークシート記入補助ツール】入力シート"]
[null,"【必ずお読みください。】"]
[null,"・姓名入力は必ず全角カナで入力をお願いいたします。"]
[null,"・一度に処理を行えるのは50名分までとなります。51名以上作成を行う場合は、本ファイルをコピーしてNo.1から作成してください。"]
[null,"・任意入力欄は選択式となります。(『その他』欄につきましては入力式となります）"]
[null,"・ローマ字に変換した内容に不備がないか確認をしてから出力を実施していただきますようお願いいたします。"]
[null,"※一度ローマ字変換をした後に一部情報修正を行う場合は、該当セルを修正の上、再度『姓名カナ⇒ローマ字変換』ボタンを押してください。"]
[]
[null,"No","個人属性","学年","クラス",null,"出席番号",null,"生　年　月　日",null,null,null,null,null,null,"性別",null,"変換前　※全角カナで入力をお願いいたします。",null,null,null,"変換後　※『氏名カナ⇒ローマ字変換』ボタンを押すとこちらに反映されます。",null,null,"文字数チェック"]
[null,null,null,"年",null,null,null,null,"年号",null,"年",null,"月",null,"日",null,null,"姓（セイ）","名（メイ）","その他",null,"SEI","MEI","SONOTA","※最大21文字"]
[null,"記入例","小学生",6,0,1,1,0,"H",2,0,0,4,2,5,"男",null,"エイケン","タロウ",null,null,"EIKEN","TAROU",null,{"$f":"IF(V11<>\"\",LEN(V11),0)+IF(W11<>\"\",LEN(W11)+1,0)+IF(X11<>\"\",LEN(X11)+1,0)","v":11}]
[null,1,null,null,null,null,null,null,null,null,null,null,null,null,null,null,null,null,null,null,null,null,null,null,{"$f":"IF(V12<>\"\",LEN(V12),0)+IF(W12<>\"\",LEN(W12)+1,0)+IF(X12<>\"\",LEN(X12)+1,0)","v":0},{"$f":"IF(Y12>21,\"文字数超過が発生してます。\",\"\")","v":""}]
[null,2,null,null,null,null,null,null,null,null,null,null,null,null,null,null,null,null,null,null,null,null,null,null,0,{"$f":"IF(Y13>21,\"文字数超過が発生してます。\",\"\")","v":""}]
[null,3,null,null,null,null,null,null,null,null,null,null,null,null,null,null,null,null,null,null,null,null,null,null,0,{"$f":"IF(Y14>21,\"文字数超過が発生してます。\",\"\")","v":""}]
[null,4,null,null,null,null,null,null,null,null,null,null,null,null,null,null,null,null,null,null,null,null,null,null,0,""]
[null,5,null,null,null,null,null,null,null,null,null,null,null,null,null,null,null,null,null,null,null,null,null,null,0,""]
[null,6,null,null,null,null,null,null,null,null,null,null,null,null,null,null,null,null,null,null,null,null,null,null,0,""]
[null,7,null,null,null,null,null,null,null,null,null,null,null,null,null,null,null,null,null,null,null,null,null,null,0,""]
[null,8,null,null,null,null,null,null,null,null,null,null,null,null,null,null,null,null,null,null,null,null,null,null,0,""]
[null,9,null,null,null,null,null,null,null,null,null,null,null,null,null,null,null,null,null,null,null,null,null,null,0,""]
[null,10,null,null,null,null,null,null,null,null,null,null,null,null,null,null,null,null,null,null,null,null,null,null,0,""]
[null,11,null,null,null,null,null,null,null,null,null,null,null,null,null,null,null,null,null,null,null,null,null,null,0,""]
[null,12,null,null,null,null,null,null,null,null,null,null,null,null,null,null,null,null,null,null,null,null,null,null,0,""]
[null,13,null,null,null,null,null,null,null,null,null,null,null,null,null,null,null,null,null,null,null,null,null,null,0,""]
[null,14,null,null,null,null,null,null,null,null,null,null,null,null,null,null,null,null,null,null,null,null,null,null,0,""]
[null,15,null,null,null,null,null,null,null,null,null,null,null,null,null,null,null,null,null,null,null,null,null,null,0,""]
[null,16,null,null,null,null,null,null,null,null,null,null,null,null,null,null,null,null,null,null,null,null,null,null,0,""]
[null,17,null,null,null,null,null,null,null,null,null,null,null,null,null,null,null,null,null,null,null,null,null,null,0,""]
[null,18,null,null,null,null,null,null,null,null,null,null,null,null,null,null,null,null,null,null,null,null,null,null,0,""]
[null,19,null,null,null,null,null,null,null,null,null,null,null,null,null,null,null,null,null,null,null,null,null,null,0,""]
[null,20,null,null,null,null,null,null,null,null,null,null,null,null,null,null,null,null,null,null,null,null,null,null,0,""]
[null,21,null,null,null,null,null,null,null,null,null,null,null,null,null,null,null,null,null,null,null,null,null,null,0,""]
[null,22,null,null,null,null,null,null,null,null,null,null,null,null,null,null,null,null,null,null,null,null,null,null,0,""]
[null,23,null,null,null,null,null,null,null,null,null,null,null,null,null,null,null,null,null,null,null,null,null,null,0,""]
[null,24,null,null,null,null,null,null,null,null,null,null,null,null,null,null,null,null,null,null,null,null,null,null,0,""]
[null,25,null,null,null,null,null,null,null,null,null,null,null,null,null,null,null,null,null,null,null,null,null,null,0,""]
[null,26,null,null,null,null,null,null,null,null,null,null,null,null,null,null,null,null,null,null,null,null,null,null,0,""]
[null,27,null,null,null,null,null,null,null,null,null,null,null,null,null,null,null,null,null,null,null,null,null,null,0,""]
[null,28,null,null,null,null,null,null,null,null,null,null,null,null,null,null,null,null,null,null,null,null,null,null,0,""]
[null,29,null,null,null,null,null,null,null,null,null,null,null,null,null,null,null,null,null,null,null,null,null,null,0,""]
[null,30,null,null,null,null,null,null,null,null,null,null,null,null,null,null,null,null,null,null,null,null,null,null,0,""]
[null,31,null,null,null,null,null,null,null,null,null,null,null,null,null,null,null,null,null,null,null,null,null,null,0,""]
[null,32,null,null,null,null,null,null,null,null,null,null,null,null,null,null,null,null,null,null,null,null,null,null,0,""]
[null,33,null,null,null,null,null,null,null,null,null,null,null,null,null,null,null,null,null,null,null,null,null,null,0,""]
[null,34,null,null,null,null,null,null,null,null,null,null,null,null,null,null,null,null,null,null,null,null,null,null,0,""]
[null,35,null,null,null,null,null,null,null,null,null,null,null,null,null,null,null,null,null,null,null,null,null,null,0,""]
[null,36,null,null,null,null,null,null,null,null,null,null,null,null,null,null,null,null,null,null,null,null,null,null,0,""]
[null,37,null,null,null,null,null,null,null,null,null,null,null,null,null,null,null,null,null,null,null,null,null,null,0,""]
[null,38,null,null,null,null,null,null,null,null,null,null,null,null,null,null,null,null,null,null,null,null,null,null,0,""]
[null,39,null,null,null,null,null,null,null,null,null,null,null,null,null,null,null,null,null,null,null,null,null,null,0,""]
[null,40,null,null,null,null,null,null,null,null,null,null,null,null,null,null,null,null,null,null,null,null,null,null,0,""]
[null,41,null,null,null,null,null,null,null,null,null,null,null,null,null,null,null,null,null,null,null,null,null,null,0,""]
[null,42,null,null,null,null,null,null,null,null,null,null,null,null,null,null,null,null,null,null,null,null,null,null,0,""]
[null,43,null,null,null,null,null,null,null,null,null,null,null,null,null,null,null,null,null,null,null,null,null,null,0,""]
[null,44,null,null,null,null,null,null,null,null,null,null,null,null,null,null,null,null,null,null,null,null,null,null,0,""]
[null,45,null,null,null,null,null,null,null,null,null,null,null,null,null,null,null,null,null,null,null,null,null,null,0,""]
[null,46,null,null,null,null,null,null,null,null,null,null,null,null,null,null,null,null,null,null,null,null,null,null,0,""]
[null,47,null,null,null,null,null,null,null,null,null,null,null,null,null,null,null,null,null,null,null,null,null,null,0,""]
[null,48,null,null,null,null,null,null,null,null,null,null,null,null,null,null,null,null,null,null,null,null,null,null,0,""]
[null,49,null,null,null,null,null,null,null,null,null,null,null,null,null,null,null,null,null,null,null,null,null,null,0,""]
[null,50,null,null,null,null,null,null,null,null,null,null,null,null,null,null,null,null,null,null,null,null,null,null,0,""]

{"sheet":"③出力シート","index":2,"n_rows":1882,"n_cols":52,"rows_kept":1882,"cut":false,"hidden":false,"merged":[[43,59,44,63],[45,35,47,35],[49,35,51,35],[57,4,57,45],[58,4,58,5],[58,6,58,7],[58,8,58,9],[58,10,58,11],[58,12,58,13],[58,14,58,15],[58,16,58,17],[58,18,58,19],[58,20,58,21],[58,22,58,23],[58,24,58,25],[58,26,58,27],[58,28,58,29],[42,22,44,22],[42,23,44,23],[58,44,58,45],[42,33,44,33],[42,34,44,34],[42,35,44,35],[42,36,44,36],[42,31,44,31],[42,32,44,32],[39,3,39,6],[39,7,39,17],[39,18,39,21],[39,22,39,32],[39,33,39,36],[39,37,39,46],[42,37,44,37],[42,38,44,38],[42,39,44,39],[42,40,44,40],[42,41,44,41],[43,45,44,48],[43,49,44,53],[43,54,44,58],[1866,21,1868,21],[1866,22,1868,22],[1866,23,1868,23],[1866,24,1868,24],[1866,25,1868,25],[1866,26,1868,26],[1863,47,1863,50],[1863,51,1863,61],[1865,4,1868,8],[1865,9,1865,10],[1865,11,1865,12],[1865,13,1865,14],[1865,15,1865,33],[1865,34,1865,41],[1865,42,1868,44],[1865,45,1866,63],[1866,34,1868,34],[1866,35,1868,35],[1882,40,1882,41],[58,30,58,31],[58,32,58,33],[58,34,58,35],[58,36,58,37],[58,38,58,39],[58,40,58,41],[58,42,58,43],[39,47,39,50],[39,51,39,61],[41,4,44,8],[41,9,41,10],[41,11,41,12],[41,13,41,14],[41,15,41,33],[41,34,41,41],[41,42,44,44],[41,45,42,63],[42,9,44,9],[42,10,44,10],[42,11,44,11],[42,12,44,12],[42,13,44,13],[42,14,44,14],[42,15,44,15],[42,16,44,16],[1882,42,1882,43],[1882,44,1882,45],[1882,28,1882,29],[1882,30,1882,31],[1882,32,1882,33],[1882,34,1882,35],[1882,36,1882,37],[1882,38,1882,39],[1882,16,1882,17],[1882,18,1882,19],[1882,20,1882,21],[1882,22,1882,23],[1882,24,1882,25],[1882,26,1882,27],[1866,15,1868,15],[1866,16,1868,16],[1866,17,1868,17],[1866,18,1868,18],[1866,19,1868,19],[1866,20,1868,20],[1869,35,1871,35],[1873,35,1875,35],[1881,4,1881,45],[1882,4,1882,5],[1882,6,1882,7],[1882,8,1882,9],[1882,10,1882,11],[1882,12,1882,13],[1882,14,1882,15],[1866,39,1868,39],[1866,40,1868,40],[1866,41,1868,41],[1866,9,1868,9],[1866,10,1868,10],[1866,11,1868,11],[1866,12,1868,12],[1866,13,1868,13],[1866,14,1868,14],[1867,59,1868,63],[1867,45,1868,48],[1867,49,1868,53],[1867,54,1868,58],[1866,33,1868,33],[1866,32,1868,32],[1844,42,1844,43],[1844,44,1844,45],[1863,3,1863,6],[1863,7,1863,17],[1863,18,1863,21],[1863,22,1863,32],[1863,33,1863,36],[1863,37,1863,46],[1844,28,1844,29],[1844,30,1844,31],[1844,32,1844,33],[1844,34,1844,35],[1844,36,1844,37],[1844,38,1844,39],[1844,16,1844,17],[1844,18,1844,19],[1844,20,1844,21],[1844,22,1844,23],[1844,40,1844,41],[1828,36,1830,36],[1828,37,1830,37],[1828,38,1830,38],[1828,27,1830,27],[1828,28,1830,28],[1828,29,1830,29],[1828,30,1830,30],[1828,31,1830,31],[1828,32,1830,32],[1828,21,1830,21],[1828,22,1830,22],[1828,23,1830,23],[1866,36,1868,36],[1866,37,1868,37],[1866,38,1868,38],[1866,27,1868,27],[1866,28,1868,28],[1866,29,1868,29],[1866,30,1868,30],[1866,31,1868,31],[1828,25,1830,25],[1828,26,1830,26],[1828,18,1830,18],[1828,19,1830,19],[1828,20,1830,20],[1828,9,1830,9],[1828,10,1830,10],[1828,11,1830,11],[1828,12,1830,12],[1828,13,1830,13],[1828,14,1830,14],[1825,47,1825,50],[1844,24,1844,25],[1844,26,1844,27],[1831,35,1833,35],[1835,35,1837,35],[1843,4,1843,45],[1844,4,1844,5],[1844,6,1844,7],[1844,8,1844,9],[1844,10,1844,11],[1844,12,1844,13],[1844,14,1844,15],[1828,39,1830,39],[1828,40,1830,40],[1828,41,1830,41],[1829,45,1830,48],[1829,49,1830,53],[1825,51,1825,61],[1827,4,1830,8],[1827,9,1827,10],[1828,33,1830,33],[1828,34,1830,34],[1828,35,1830,35],[1827,11,1827,12],[1827,13,1827,14],[1827,15,1827,33],[1827,34,1827,41],[1827,42,1830,44],[1827,45,1828,63],[1829,59,1830,63],[1806,42,1806,43],[1806,44,1806,45],[1825,3,1825,6],[1825,7,1825,17],[1825,18,1825,21],[1825,22,1825,32],[1825,33,1825,36],[1825,37,1825,46],[1806,28,1806,29],[1806,30,1806,31],[1806,32,1806,33],[1806,34,1806,35],[1806,36,1806,37],[1806,38,1806,39],[1806,16,1806,17],[1806,18,1806,19],[1806,20,1806,21],[1806,22,1806,23],[1806,24,1806,25],[1806,26,1806,27],[1828,24,1830,24],[1829,54,1830,58],[1828,15,1830,15],[1828,16,1830,16],[1828,17,1830,17],[1793,35,1795,35],[1797,35,1799,35],[1805,4,1805,45],[1806,4,1806,5],[1806,6,1806,7],[1806,8,1806,9],[1806,10,1806,11],[1806,12,1806,13],[1806,14,1806,15],[1790,39,1792,39],[1790,40,1792,40],[1790,41,1792,41],[1791,45,1792,48],[1791,49,1792,53],[1791,54,1792,58],[1790,33,1792,33],[1790,34,1792,34],[1790,35,1792,35],[1790,36,1792,36],[1790,37,1792,37],[1790,38,1792,38],[1790,27,1792,27],[1790,28,1792,28],[1790,29,1792,29],[1790,30,1792,30],[1790,31,1792,31],[1790,32,1792,32],[1790,21,1792,21],[1790,22,1792,22],[1790,23,1792,23],[1790,24,1792,24],[1806,40,1806,41],[1790,25,1792,25],[1790,26,1792,26],[1790,15,1792,15],[1790,16,1792,16],[1790,17,1792,17],[1790,18,1792,18],[1790,19,1792,19],[1790,20,1792,20],[1790,9,1792,9],[1790,10,1792,10],[1790,11,1792,11],[1790,12,1792,12],[1790,13,1792,13],[1790,14,1792,14],[1787,47,1787,50],[1787,51,1787,61],[1789,4,1792,8],[1789,9,1789,10],[1789,11,1789,12],[1789,13,1789,14],[1789,15,1789,33],[1789,34,1789,41],[1789,42,1792,44],[1789,45,1790,63],[1791,59,1792,63],[1768,42,1768,43],[1768,44,1768,45],[1787,3,1787,6],[1787,7,1787,17],[1787,18,1787,21],[1787,22,1787,32],[1787,33,1787,36],[1787,37,1787,46],[1768,28,1768,29],[1768,30,1768,31],[1768,32,1768,33],[1768,34,1768,35],[1768,36,1768,37],[1768,38,1768,39],[1768,16,1768,17],[1768,18,1768,19],[1768,20,1768,21],[1768,22,1768,23],[1768,24,1768,25],[1768,26,1768,27],[1755,35,1757,35],[1759,35,1761,35],[1767,4,1767,45],[1768,4,1768,5],[1768,6,1768,7],[1768,8,1768,9],[1768,10,1768,11],[1768,12,1768,13],[1768,14,1768,15],[1752,39,1754,39],[1752,40,1754,40],[1752,41,1754,41],[1753,45,1754,48],[1753,49,1754,53],[1753,54,1754,58],[1752,33,1754,33],[1752,34,1754,34],[1752,35,1754,35],[1752,36,1754,36],[1752,37,1754,37],[1752,38,1754,38],[1752,27,1754,27],[1752,28,1754,28],[1752,29,1754,29],[1752,30,1754,30],[1752,31,1754,31],[1752,32,1754,32],[1752,21,1754,21],[1752,22,1754,22],[1752,23,1754,23],[1752,24,1754,24],[1768,40,1768,41],[1752,25,1754,25],[1752,26,1754,26],[1752,15,1754,15],[1752,16,1754,16],[1752,17,1754,17],[1752,18,1754,18],[1752,19,1754,19],[1752,20,1754,20],[1752,9,1754,9],[1752,10,1754,10],[1752,11,1754,11],[1752,12,1754,12],[1752,13,1754,13],[1752,14,1754,14],[1749,47,1749,50],[1749,51,1749,61],[1751,4,1754,8],[1751,9,1751,10],[1751,11,1751,12],[1751,13,1751,14],[1751,15,1751,33],[1751,34,1751,41],[1751,42,1754,44],[1751,45,1752,63],[1753,59,1754,63],[1730,42,1730,43],[1730,44,1730,45],[1749,3,1749,6],[1749,7,1749,17],[1749,18,1749,21],[1749,22,1749,32],[1749,33,1749,36],[1749,37,1749,46],[1730,28,1730,29],[1730,30,1730,31],[1730,32,1730,33],[1730,34,1730,35],[1730,36,1730,37],[1730,38,1730,39],[1730,16,1730,17],[1730,18,1730,19],[1730,20,1730,21],[1730,22,1730,23],[1730,24,1730,25],[1730,26,1730,27],[1717,35,1719,35],[1721,35,1723,35],[1729,4,1729,45],[1730,4,1730,5],[1730,6,1730,7],[1730,8,1730,9],[1730,10,1730,11],[1730,12,1730,13],[1730,14,1730,15],[1714,39,1716,39],[1714,40,1716,40],[1714,41,1716,41],[1715,45,1716,48],[1715,49,1716,53],[1715,54,1716,58],[1714,33,1716,33],[1714,34,1716,34],[1714,35,1716,35],[1714,36,1716,36],[1714,37,1716,37],[1714,38,1716,38],[1714,27,1716,27],[1714,28,1716,28],[1714,29,1716,29],[1714,30,1716,30],[1714,31,1716,31],[1714,32,1716,32],[1714,21,1716,21],[1714,22,1716,22],[1714,23,1716,23],[1714,24,1716,24],[1730,40,1730,41],[1714,25,1716,25],[1714,26,1716,26],[1714,15,1716,15],[1714,16,1716,16],[1714,17,1716,17],[1714,18,1716,18],[1714,19,1716,19],[1714,20,1716,20],[1714,9,1716,9],[1714,10,1716,10],[1714,11,1716,11],[1714,12,1716,12],[1714,13,1716,13],[1714,14,1716,14],[1711,47,1711,50],[1711,51,1711,61],[1713,4,1716,8],[1713,9,1713,10],[1713,11,1713,12],[1713,13,1713,14],[1713,15,1713,33],[1713,34,1713,41],[1713,42,1716,44],[1713,45,1714,63],[1715,59,1716,63],[1692,42,1692,43],[1692,44,1692,45],[1711,3,1711,6],[1711,7,1711,17],[1711,18,1711,21],[1711,22,1711,32],[1711,33,1711,36],[1711,37,1711,46],[1692,28,1692,29],[1692,30,1692,31],[1692,32,1692,33],[1692,34,1692,35],[1692,36,1692,37],[1692,38,1692,39],[1692,16,1692,17],[1692,18,1692,19],[1692,20,1692,21],[1692,22,1692,23],[1692,24,1692,25],[1692,26,1692,27],[1679,35,1681,35],[1683,35,1685,35],[1691,4,1691,45],[1692,4,1692,5],[1692,6,1692,7],[1692,8,1692,9],[1692,10,1692,11],[1692,12,1692,13],[1692,14,1692,15],[1676,39,1678,39],[1676,40,1678,40],[1676,41,1678,41],[1677,45,1678,48],[1677,49,1678,53],[1677,54,1678,58],[1676,33,1678,33],[1676,34,1678,34],[1676,35,1678,35],[1676,36,1678,36],[1676,37,1678,37],[1676,38,1678,38],[1676,27,1678,27],[1676,28,1678,28],[1676,29,1678,29],[1676,30,1678,30],[1676,31,1678,31],[1676,32,1678,32],[1676,21,1678,21],[1676,22,1678,22],[1676,23,1678,23],[1676,24,1678,24],[1692,40,1692,41],[1676,25,1678,25],[1676,26,1678,26],[1676,15,1678,15],[1676,16,1678,16],[1676,17,1678,17],[1676,18,1678,18],[1676,19,1678,19],[1676,20,1678,20],[1676,9,1678,9],[1676,10,1678,10],[1676,11,1678,11],[1676,12,1678,12],[1676,13,1678,13],[1676,14,1678,14],[1673,47,1673,50],[1673,51,1673,61],[1675,4,1678,8],[1675,9,1675,10],[1675,11,1675,12],[1675,13,1675,14],[1675,15,1675,33],[1675,34,1675,41],[1675,42,1678,44],[1675,45,1676,63],[1677,59,1678,63],[1654,42,1654,43],[1654,44,1654,45],[1673,3,1673,6],[1673,7,1673,17],[1673,18,1673,21],[1673,22,1673,32],[1673,33,1673,36],[1673,37,1673,46],[1654,28,1654,29],[1654,30,1654,31],[1654,32,1654,33],[1654,34,1654,35],[1654,36,1654,37],[1654,38,1654,39],[1654,16,1654,17],[1654,18,1654,19],[1654,20,1654,21],[1654,22,1654,23],[1654,24,1654,25],[1654,26,1654,27],[1641,35,1643,35],[1645,35,1647,35],[1653,4,1653,45],[1654,4,1654,5],[1654,6,1654,7],[1654,8,1654,9],[1654,10,1654,11],[1654,12,1654,13],[1654,14,1654,15],[1638,39,1640,39],[1638,40,1640,40],[1638,41,1640,41],[1639,45,1640,48],[1639,49,1640,53],[1639,54,1640,58],[1638,33,1640,33],[1638,34,1640,34],[1638,35,1640,35],[1638,36,1640,36],[1638,37,1640,37],[1638,38,1640,38],[1638,27,1640,27],[1638,28,1640,28],[1638,29,1640,29],[1638,30,1640,30],[1638,31,1640,31],[1638,32,1640,32],[1638,21,1640,21],[1638,22,1640,22],[1638,23,1640,23],[1638,24,1640,24],[1654,40,1654,41],[1638,25,1640,25],[1638,26,1640,26],[1638,15,1640,15],[1638,16,1640,16],[1638,17,1640,17],[1638,18,1640,18],[1638,19,1640,19],[1638,20,1640,20],[1638,9,1640,9],[1638,10,1640,10],[1638,11,1640,11],[1638,12,1640,12],[1638,13,1640,13],[1638,14,1640,14],[1635,47,1635,50],[1635,51,1635,61],[1637,4,1640,8],[1637,9,1637,10],[1637,11,1637,12],[1637,13,1637,14],[1637,15,1637,33],[1637,34,1637,41],[1637,42,1640,44],[1637,45,1638,63],[1639,59,1640,63],[1616,42,1616,43],[1616,44,1616,45],[1635,3,1635,6],[1635,7,1635,17],[1635,18,1635,21],[1635,22,1635,32],[1635,33,1635,36],[1635,37,1635,46],[1616,28,1616,29],[1616,30,1616,31],[1616,32,1616,33],[1616,34,1616,35],[1616,36,1616,37],[1616,38,1616,39],[1616,16,1616,17],[1616,18,1616,19],[1616,20,1616,21],[1616,22,1616,23],[1616,24,1616,25],[1616,26,1616,27],[1603,35,1605,35],[1607,35,1609,35],[1615,4,1615,45],[1616,4,1616,5],[1616,6,1616,7],[1616,8,1616,9],[1616,10,1616,11],[1616,12,1616,13],[1616,14,1616,15],[1600,39,1602,39],[1600,40,1602,40],[1600,41,1602,41],[1601,45,1602,48],[1601,49,1602,53],[1601,54,1602,58],[1600,33,1602,33],[1600,34,1602,34],[1600,35,1602,35],[1600,36,1602,36],[1600,37,1602,37],[1600,38,1602,38],[1600,27,1602,27],[1600,28,1602,28],[1600,29,1602,29],[1600,30,1602,30],[1600,31,1602,31],[1600,32,1602,32],[1600,21,1602,21],[1600,22,1602,22],[1600,23,1602,23],[1600,24,1602,24],[1616,40,1616,41],[1600,25,1602,25],[1600,26,1602,26],[1600,15,1602,15],[1600,16,1602,16],[1600,17,1602,17],[1600,18,1602,18],[1600,19,1602,19],[1600,20,1602,20],[1600,9,1602,9],[1600,10,1602,10],[1600,11,1602,11],[1600,12,1602,12],[1600,13,1602,13],[1600,14,1602,14],[1597,47,1597,50],[1597,51,1597,61],[1599,4,1602,8],[1599,9,1599,10],[1599,11,1599,12],[1599,13,1599,14],[1599,15,1599,33],[1599,34,1599,41],[1599,42,1602,44],[1599,45,1600,63],[1601,59,1602,63],[1578,42,1578,43],[1578,44,1578,45],[1597,3,1597,6],[1597,7,1597,17],[1597,18,1597,21],[1597,22,1597,32],[1597,33,1597,36],[1597,37,1597,46],[1578,28,1578,29],[1578,30,1578,31],[1578,32,1578,33],[1578,34,1578,35],[1578,36,1578,37],[1578,38,1578,39],[1578,16,1578,17],[1578,18,1578,19],[1578,20,1578,21],[1578,22,1578,23],[1578,24,1578,25],[1578,26,1578,27],[1565,35,1567,35],[1569,35,1571,35],[1577,4,1577,45],[1578,4,1578,5],[1578,6,1578,7],[1578,8,1578,9],[1578,10,1578,11],[1578,12,1578,13],[1578,14,1578,15],[1562,39,1564,39],[1562,40,1564,40],[1562,41,1564,41],[1563,45,1564,48],[1563,49,1564,53],[1563,54,1564,58],[1562,33,1564,33],[1562,34,1564,34],[1562,35,1564,35],[1562,36,1564,36],[1562,37,1564,37],[1562,38,1564,38],[1562,27,1564,27],[1562,28,1564,28],[1562,29,1564,29],[1562,30,1564,30],[1562,31,1564,31],[1562,32,1564,32],[1562,21,1564,21],[1562,22,1564,22],[1562,23,1564,23],[1562,24,1564,24],[1578,40,1578,41],[1562,25,1564,25],[1562,26,1564,26],[1562,15,1564,15],[1562,16,1564,16],[1562,17,1564,17],[1562,18,1564,18],[1562,19,1564,19],[1562,20,1564,20],[1562,9,1564,9],[1562,10,1564,10],[1562,11,1564,11],[1562,12,1564,12],[1562,13,1564,13],[1562,14,1564,14],[1559,47,1559,50],[1559,51,1559,61],[1561,4,1564,8],[1561,9,1561,10],[1561,11,1561,12],[1561,13,1561,14],[1561,15,1561,33],[1561,34,1561,41],[1561,42,1564,44],[1561,45,1562,63],[1563,59,1564,63],[1540,42,1540,43],[1540,44,1540,45],[1559,3,1559,6],[1559,7,1559,17],[1559,18,1559,21],[1559,22,1559,32],[1559,33,1559,36],[1559,37,1559,46],[1540,28,1540,29],[1540,30,1540,31],[1540,32,1540,33],[1540,34,1540,35],[1540,36,1540,37],[1540,38,1540,39],[1540,16,1540,17],[1540,18,1540,19],[1540,20,1540,21],[1540,22,1540,23],[1540,24,1540,25],[1540,26,1540,27],[1527,35,1529,35],[1531,35,1533,35],[1539,4,1539,45],[1540,4,1540,5],[1540,6,1540,7],[1540,8,1540,9],[1540,10,1540,11],[1540,12,1540,13],[1540,14,1540,15],[1524,39,1526,39],[1524,40,1526,40],[1524,41,1526,41],[1525,45,1526,48],[1525,49,1526,53],[1525,54,1526,58],[1524,33,1526,33],[1524,34,1526,34],[1524,35,1526,35],[1524,36,1526,36],[1524,37,1526,37],[1524,38,1526,38],[1524,27,1526,27],[1524,28,1526,28],[1524,29,1526,29],[1524,30,1526,30],[1524,31,1526,31],[1524,32,1526,32],[1524,21,1526,21],[1524,22,1526,22],[1524,23,1526,23],[1524,24,1526,24],[1540,40,1540,41],[1524,25,1526,25],[1524,26,1526,26],[1524,15,1526,15],[1524,16,1526,16],[1524,17,1526,17],[1524,18,1526,18],[1524,19,1526,19],[1524,20,1526,20],[1524,9,1526,9],[1524,10,1526,10],[1524,11,1526,11],[1524,12,1526,12],[1524,13,1526,13],[1524,14,1526,14],[1521,47,1521,50],[1521,51,1521,61],[1523,4,1526,8],[1523,9,1523,10],[1523,11,1523,12],[1523,13,1523,14],[1523,15,1523,33],[1523,34,1523,41],[1523,42,1526,44],[1523,45,1524,63],[1525,59,1526,63],[1502,42,1502,43],[1502,44,1502,45],[1521,3,1521,6],[1521,7,1521,17],[1521,18,1521,21],[1521,22,1521,32],[1521,33,1521,36],[1521,37,1521,46],[1502,28,1502,29],[1502,30,1502,31],[1502,32,1502,33],[1502,34,1502,35],[1502,36,1502,37],[1502,38,1502,39],[1502,16,1502,17],[1502,18,1502,19],[1502,20,1502,21],[1502,22,1502,23],[1502,24,1502,25],[1502,26,1502,27],[1489,35,1491,35],[1493,35,1495,35],[1501,4,1501,45],[1502,4,1502,5],[1502,6,1502,7],[1502,8,1502,9],[1502,10,1502,11],[1502,12,1502,13],[1502,14,1502,15],[1486,39,1488,39],[1486,40,1488,40],[1486,41,1488,41],[1487,45,1488,48],[1487,49,1488,53],[1487,54,1488,58],[1486,33,1488,33],[1486,34,1488,34],[1486,35,1488,35],[1486,36,1488,36],[1486,37,1488,37],[1486,38,1488,38],[1486,27,1488,27],[1486,28,1488,28],[1486,29,1488,29],[1486,30,1488,30],[1486,31,1488,31],[1486,32,1488,32],[1486,21,1488,21],[1486,22,1488,22],[1486,23,1488,23],[1486,24,1488,24],[1502,40,1502,41],[1486,25,1488,25],[1486,26,1488,26],[1486,15,1488,15],[1486,16,1488,16],[1486,17,1488,17],[1486,18,1488,18],[1486,19,1488,19],[1486,20,1488,20],[1486,9,1488,9],[1486,10,1488,10],[1486,11,1488,11],[1486,12,1488,12],[1486,13,1488,13],[1486,14,1488,14],[1483,47,1483,50],[1483,51,1483,61],[1485,4,1488,8],[1485,9,1485,10],[1485,11,1485,12],[1485,13,1485,14],[1485,15,1485,33],[1485,34,1485,41],[1485,42,1488,44],[1485,45,1486,63],[1487,59,1488,63],[1464,42,1464,43],[1464,44,1464,45],[1483,3,1483,6],[1483,7,1483,17],[1483,18,1483,21],[1483,22,1483,32],[1483,33,1483,36],[1483,37,1483,46],[1464,28,1464,29],[1464,30,1464,31],[1464,32,1464,33],[1464,34,1464,35],[1464,36,1464,37],[1464,38,1464,39],[1464,16,1464,17],[1464,18,1464,19],[1464,20,1464,21],[1464,22,1464,23],[1464,24,1464,25],[1464,26,1464,27],[1451,35,1453,35],[1455,35,1457,35],[1463,4,1463,45],[1464,4,1464,5],[1464,6,1464,7],[1464,8,1464,9],[1464,10,1464,11],[1464,12,1464,13],[1464,14,1464,15],[1448,39,1450,39],[1448,40,1450,40],[1448,41,1450,41],[1449,45,1450,48],[1449,49,1450,53],[1449,54,1450,58],[1448,33,1450,33],[1448,34,1450,34],[1448,35,1450,35],[1448,36,1450,36],[1448,37,1450,37],[1448,38,1450,38],[1448,27,1450,27],[1448,28,1450,28],[1448,29,1450,29],[1448,30,1450,30],[1448,31,1450,31],[1448,32,1450,32],[1448,21,1450,21],[1448,22,1450,22],[1448,23,1450,23],[1448,24,1450,24],[1464,40,1464,41],[1448,25,1450,25],[1448,26,1450,26],[1448,15,1450,15],[1448,16,1450,16],[1448,17,1450,17],[1448,18,1450,18],[1448,19,1450,19],[1448,20,1450,20],[1448,9,1450,9],[1448,10,1450,10],[1448,11,1450,11],[1448,12,1450,12],[1448,13,1450,13],[1448,14,1450,14],[1445,47,1445,50],[1445,51,1445,61],[1447,4,1450,8],[1447,9,1447,10],[1447,11,1447,12],[1447,13,1447,14],[1447,15,1447,33],[1447,34,1447,41],[1447,42,1450,44],[1447,45,1448,63],[1449,59,1450,63],[1426,42,1426,43],[1426,44,1426,45],[1445,3,1445,6],[1445,7,1445,17],[1445,18,1445,21],[1445,22,1445,32],[1445,33,1445,36],[1445,37,1445,46],[1426,28,1426,29],[1426,30,1426,31],[1426,32,1426,33],[1426,34,1426,35],[1426,36,1426,37],[1426,38,1426,39],[1426,16,1426,17],[1426,18,1426,19],[1426,20,1426,21]],"merged_total":3851,"flags":["merged_cut"]}
[null,"先生の説明を聞いて、下の例を見ながら、解答用紙（A面）に自分の情報を記入しましょう。 \n黒くぬってあるところは、解答用紙（A面）の同じ場所をぬりつぶしましょう。"]
[null,"No",1,"団体名",null,null,null,null,null,null,null,null,null,null,null,null,null,null,"所属",null,null,null,null,null,null,null,null,null,null,null,null,null,null,"氏名(漢字)",null,null,null,null,null,null,null,null,null,null,null,null,null,"氏名(カナ)",null,null,null,{"$f":"②入力シート!R12&\"　\"&②入力シート!S12&\"　\"&②入力シート!T12","v":"　　"}]
[]
[null,null,null,null,"個 人 属 性",null,null,null,null,"学年",null,"クラス",null,"出席\n番号",null,"I　　　D　　　番　　　号",null,null,null,null,null,null,null,null,null,null,null,null,null,null,null,null,null,null,"生　年　月　日",null,null,null,null,null,null,null,"性\n\n別"]
[null,null,null,null,null,null,null,null,null,null,"年",null,null,null,null,null,null,null,null,null,null,null,null,null,null,null,null,null,null,null,null,null,null,null,null,"年\n号"]
[]
[]
[null,null,null,null," 小学生",null,null,null,null,null,null,null,null,null,null,null,null,null,null,null,null,null,null,null,null,null,null,null,null,null,null,null,null,null,null,"昭\n和",null,null,null,null,null,null,null,"男"]
[null,null,null,null," 中学生"]
[null,null,null,null," 教員"]
[null,null,null,null," その他",null,null,null,null,null,null,null,null,null,null,null,null,null,null,null,null,null,null,null,null,null,null,null,null,null,null,null,null,null,null,null,null,null,null,null,null,null,null,"女"]
[null,null,null,null,null,null,null,null,null,null,null,null,null,null,null,null,null,null,null,null,null,null,null,null,null,null,null,null,null,null,null,null,null,null,null,"平成"]
[]
[]
[]
[]
[]
[]
[]
[null,null,null,null,"氏　　　　名"]
[]
[]
[]
[]
[]
[]
[]
[]
[]
[]
[]
[]
[]
[]
[]
[]
[]
[]
[]
[null,"No",2,"団体名",null,null,null,null,null,null,null,null,null,null,null,null,null,null,"所属",null,null,null,null,null,null,null,null,null,null,null,null,null,null,"氏名(漢字)",null,null,null,null,null,null,null,null,null,null,null,null,null,"氏名(カナ)",null,null,null,{"$f":"②入力シート!R13&\"　\"&②入力シート!S13&\"　\"&②入力シート!T13","v":"　　"}]
[]
[null,null,null,null,"個 人 属 性",null,null,null,null,"学年",null,"クラス",null,"出席\n番号",null,"I　　　D　　　番　　　号",null,null,null,null,null,null,null,null,null,null,null,null,null,null,null,null,null,null,"生　年　月　日",null,null,null,null,null,null,null,"性\n\n別"]
[null,null,null,null,null,null,null,null,null,null,"年",null,null,null,null,null,null,null,null,null,null,null,null,null,null,null,null,null,null,null,null,null,null,null,null,"年\n号"]
[]
[]
[null,null,null,null," 小学生",null,null,null,null,null,null,null,null,null,null,null,null,null,null,null,null,null,null,null,null,null,null,null,null,null,null,null,null,null,null,"昭\n和",null,null,null,null,null,null,null,"男"]
[null,null,null,null," 中学生"]
[null,null,null,null," 教員"]
[null,null,null,null," その他",null,null,null,null,null,null,null,null,null,null,null,null,null,null,null,null,null,null,null,null,null,null,null,null,null,null,null,null,null,null,null,null,null,null,null,null,null,null,"女"]
[null,null,null,null,null,null,null,null,null,null,null,null,null,null,null,null,null,null,null,null,null,null,null,null,null,null,null,null,null,null,null,null,null,null,null,"平成"]
[]
[]
[]
[]
[]
[]
[]
[null,null,null,null,"氏　　　　名"]
[]
[]
[]
[]
[]
[]
[]
[]
[]
[]
[]
[]
[]
[]
[]
[]
[]
[]
[]
[null,"No",3,"団体名",null,null,null,null,null,null,null,null,null,null,null,null,null,null,"所属",null,null,null,null,null,null,null,null,null,null,null,null,null,null,"氏名(漢字)",null,null,null,null,null,null,null,null,null,null,null,null,null,"氏名(カナ)",null,null,null,{"$f":"②入力シート!R14&\"　\"&②入力シート!S14&\"　\"&②入力シート!T14","v":"　　"}]
[]
[null,null,null,null,"個 人 属 性",null,null,null,null,"学年",null,"クラス",null,"出席\n番号",null,"I　　　D　　　番　　　号",null,null,null,null,null,null,null,null,null,null,null,null,null,null,null,null,null,null,"生　年　月　日",null,null,null,null,null,null,null,"性\n\n別"]
[null,null,null,null,null,null,null,null,null,null,"年",null,null,null,null,null,null,null,null,null,null,null,null,null,null,null,null,null,null,null,null,null,null,null,null,"年\n号"]
[]
[]
[null,null,null,null," 小学生",null,null,null,null,null,null,null,null,null,null,null,null,null,null,null,null,null,null,null,null,null,null,null,null,null,null,null,null,null,null,"昭\n和",null,null,null,null,null,null,null,"男"]
[null,null,null,null," 中学生"]
[null,null,null,null," 教員"]
[null,null,null,null," その他",null,null,null,null,null,null,null,null,null,null,null,null,null,null,null,null,null,null,null,null,null,null,null,null,null,null,null,null,null,null,null,null,null,null,null,null,null,null,"女"]
[null,null,null,null,null,null,null,null,null,null,null,null,null,null,null,null,null,null,null,null,null,null,null,null,null,null,null,null,null,null,null,null,null,null,null,"平成"]
[]
[]
[]
[]
[]
[]
[]
[null,null,null,null,"氏　　　　名"]
[]
[]
[]
[]
[]
[]
[]
[]
[]
[]
[]
[]
[]
[]
[]
[]
[]
[]
[]
[null,"No",4,"団体名",null,null,null,null,null,null,null,null,null,null,null,null,null,null,"所属",null,null,null,null,null,null,null,null,null,null,null,null,null,null,"氏名(漢字)",null,null,null,null,null,null,null,null,null,null,null,null,null,"氏名(カナ)",null,null,null,{"$f":"②入力シート!R15&\"　\"&②入力シート!S15&\"　\"&②入力シート!T15","v":"　　"}]
[]
[null,null,null,null,"個 人 属 性",null,null,null,null,"学年",null,"クラス",null,"出席\n番号",null,"I　　　D　　　番　　　号",null,null,null,null,null,null,null,null,null,null,null,null,null,null,null,null,null,null,"生　年　月　日",null,null,null,null,null,null,null,"性\n\n別"]
[null,null,null,null,null,null,null,null,null,null,"年",null,null,null,null,null,null,null,null,null,null,null,null,null,null,null,null,null,null,null,null,null,null,null,null,"年\n号"]
[]
[]
[null,null,null,null," 小学生",null,null,null,null,null,null,null,null,null,null,null,null,null,null,null,null,null,null,null,null,null,null,null,null,null,null,null,null,null,null,"昭\n和",null,null,null,null,null,null,null,"男"]
[null,null,null,null," 中学生"]
[null,null,null,null," 教員"]
[null,null,null,null," その他",null,null,null,null,null,null,null,null,null,null,null,null,null,null,null,null,null,null,null,null,null,null,null,null,null,null,null,null,null,null,null,null,null,null,null,null,null,null,"女"]
[null,null,null,null,null,null,null,null,null,null,null,null,null,null,null,null,null,null,null,null,null,null,null,null,null,null,null,null,null,null,null,null,null,null,null,"平成"]
[]
[]
[]
[]
[]
[]
[]
[null,null,null,null,"氏　　　　名"]
[]
[]
[]
[]
[]
[]
[]
[]
[]
[]
[]
[]
[]
[]
[]
[]
[]
[]
[]
[null,"No",5,"団体名",null,null,null,null,null,null,null,null,null,null,null,null,null,null,"所属",null,null,null,null,null,null,null,null,null,null,null,null,null,null,"氏名(漢字)",null,null,null,null,null,null,null,null,null,null,null,null,null,"氏名(カナ)",null,null,null,{"$f":"②入力シート!R16&\"　\"&②入力シート!S16&\"　\"&②入力シート!T16","v":"　　"}]
[]
[null,null,null,null,"個 人 属 性",null,null,null,null,"学年",null,"クラス",null,"出席\n番号",null,"I　　　D　　　番　　　号",null,null,null,null,null,null,null,null,null,null,null,null,null,null,null,null,null,null,"生　年　月　日",null,null,null,null,null,null,null,"性\n\n別"]
[null,null,null,null,null,null,null,null,null,null,"年",null,null,null,null,null,null,null,null,null,null,null,null,null,null,null,null,null,null,null,null,null,null,null,null,"年\n号"]
[]
[]
[null,null,null,null," 小学生",null,null,null,null,null,null,null,null,null,null,null,null,null,null,null,null,null,null,null,null,null,null,null,null,null,null,null,null,null,null,"昭\n和",null,null,null,null,null,null,null,"男"]
[null,null,null,null," 中学生"]
[null,null,null,null," 教員"]
[null,null,null,null," その他",null,null,null,null,null,null,null,null,null,null,null,null,null,null,null,null,null,null,null,null,null,null,null,null,null,null,null,null,null,null,null,null,null,null,null,null,null,null,"女"]
[null,null,null,null,null,null,null,null,null,null,null,null,null,null,null,null,null,null,null,null,null,null,null,null,null,null,null,null,null,null,null,null,null,null,null,"平成"]
[]
[]
[]
[]
[]
[]
[]
[null,null,null,null,"氏　　　　名"]
[]
[]
[]
[]
[]
[]
[]
[]
[]
[]
[]
[]
[]
[]
[]
[]
[]
[]
[]
[null,"No",6,"団体名",null,null,null,null,null,null,null,null,null,null,null,null,null,null,"所属",null,null,null,null,null,null,null,null,null,null,null,null,null,null,"氏名(漢字)",null,null,null,null,null,null,null,null,null,null,null,null,null,"氏名(カナ)",null,null,null,{"$f":"②入力シート!R17&\"　\"&②入力シート!S17&\"　\"&②入力シート!T17","v":"　　"}]
[]
[null,null,null,null,"個 人 属 性",null,null,null,null,"学年",null,"クラス",null,"出席\n番号",null,"I　　　D　　　番　　　号",null,null,null,null,null,null,null,null,null,null,null,null,null,null,null,null,null,null,"生　年　月　日",null,null,null,null,null,null,null,"性\n\n別"]
[null,null,null,null,null,null,null,null,null,null,"年",null,null,null,null,null,null,null,null,null,null,null,null,null,null,null,null,null,null,null,null,null,null,null,null,"年\n号"]
[]
[]
[null,null,null,null," 小学生",null,null,null,null,null,null,null,null,null,null,null,null,null,null,null,null,null,null,null,null,null,null,null,null,null,null,null,null,null,null,"昭\n和",null,null,null,null,null,null,null,"男"]
[null,null,null,null," 中学生"]
[null,null,null,null," 教員"]
[null,null,null,null," その他",null,null,null,null,null,null,null,null,null,null,null,null,null,null,null,null,null,null,null,null,null,null,null,null,null,null,null,null,null,null,null,null,null,null,null,null,null,null,"女"]
[null,null,null,null,null,null,null,null,null,null,null,null,null,null,null,null,null,null,null,null,null,null,null,null,null,null,null,null,null,null,null,null,null,null,null,"平成"]
[]
[]
[]
[]
[]
[]
[]
[null,null,null,null,"氏　　　　名"]
[]
[]
[]
[]
[]
[]
[]
[]
[]
[]
[]
[]
[]
[]
[]
[]
[]
[]
[]
[null,"No",7,"団体名",null,null,null,null,null,null,null,null,null,null,null,null,null,null,"所属",null,null,null,null,null,null,null,null,null,null,null,null,null,null,"氏名(漢字)",null,null,null,null,null,null,null,null,null,null,null,null,null,"氏名(カナ)",null,null,null,{"$f":"②入力シート!R18&\"　\"&②入力シート!S18&\"　\"&②入力シート!T18","v":"　　"}]
[]
[null,null,null,null,"個 人 属 性",null,null,null,null,"学年",null,"クラス",null,"出席\n番号",null,"I　　　D　　　番　　　号",null,null,null,null,null,null,null,null,null,null,null,null,null,null,null,null,null,null,"生　年　月　日",null,null,null,null,null,null,null,"性\n\n別"]
[null,null,null,null,null,null,null,null,null,null,"年",null,null,null,null,null,null,null,null,null,null,null,null,null,null,null,null,null,null,null,null,null,null,null,null,"年\n号"]
[]
[]
[null,null,null,null," 小学生",null,null,null,null,null,null,null,null,null,null,null,null,null,null,null,null,null,null,null,null,null,null,null,null,null,null,null,null,null,null,"昭\n和",null,null,null,null,null,null,null,"男"]
[null,null,null,null," 中学生"]
[null,null,null,null," 教員"]
[null,null,null,null," その他",null,null,null,null,null,null,null,null,null,null,null,null,null,null,null,null,null,null,null,null,null,null,null,null,null,null,null,null,null,null,null,null,null,null,null,null,null,null,"女"]
[null,null,null,null,null,null,null,null,null,null,null,null,null,null,null,null,null,null,null,null,null,null,null,null,null,null,null,null,null,null,null,null,null,null,null,"平成"]
[]
[]
[]
[]
[]
[]
[]
[null,null,null,null,"氏　　　　名"]
[]
[]
[]
[]
[]
[]
[]
[]
[]
[]
[]
[]
[]
[]
[]
[]
[]
[]
[]
[null,"No",8,"団体名",null,null,null,null,null,null,null,null,null,null,null,null,null,null,"所属",null,null,null,null,null,null,null,null,null,null,null,null,null,null,"氏名(漢字)",null,null,null,null,null,null,null,null,null,null,null,null,null,"氏名(カナ)",null,null,null,{"$f":"②入力シート!R19&\"　\"&②入力シート!S19&\"　\"&②入力シート!T19","v":"　　"}]
[]
[null,null,null,null,"個 人 属 性",null,null,null,null,"学年",null,"クラス",null,"出席\n番号",null,"I　　　D　　　番　　　号",null,null,null,null,null,null,null,null,null,null,null,null,null,null,null,null,null,null,"生　年　月　日",null,null,null,null,null,null,null,"性\n\n別"]
[null,null,null,null,null,null,null,null,null,null,"年",null,null,null,null,null,null,null,null,null,null,null,null,null,null,null,null,null,null,null,null,null,null,null,null,"年\n号"]
[]
[]
[null,null,null,null," 小学生",null,null,null,null,null,null,null,null,null,null,null,null,null,null,null,null,null,null,null,null,null,null,null,null,null,null,null,null,null,null,"昭\n和",null,null,null,null,null,null,null,"男"]
[null,null,null,null," 中学生"]
[null,null,null,null," 教員"]
[null,null,null,null," その他",null,null,null,null,null,null,null,null,null,null,null,null,null,null,null,null,null,null,null,null,null,null,null,null,null,null,null,null,null,null,null,null,null,null,null,null,null,null,"女"]
[null,null,null,null,null,null,null,null,null,null,null,null,null,null,null,null,null,null,null,null,null,null,null,null,null,null,null,null,null,null,null,null,null,null,null,"平成"]
[]
[]
[]
[]
[]
[]
[]
[null,null,null,null,"氏　　　　名"]
[]
[]
[]
[]
[]
[]
[]
[]
[]
[]
[]
[]
[]
[]
[]
[]
[]
[]
[]
[null,"No",9,"団体名",null,null,null,null,null,null,null,null,null,null,null,null,null,null,"所属",null,null,null,null,null,null,null,null,null,null,null,null,null,null,"氏名(漢字)",null,null,null,null,null,null,null,null,null,null,null,null,null,"氏名(カナ)",null,null,null,{"$f":"②入力シート!R20&\"　\"&②入力シート!S20&\"　\"&②入力シート!T20","v":"　　"}]
[]
[null,null,null,null,"個 人 属 性",null,null,null,null,"学年",null,"クラス",null,"出席\n番号",null,"I　　　D　　　番　　　号",null,null,null,null,null,null,null,null,null,null,null,null,null,null,null,null,null,null,"生　年　月　日",null,null,null,null,null,null,null,"性\n\n別"]
[null,null,null,null,null,null,null,null,null,null,"年",null,null,null,null,null,null,null,null,null,null,null,null,null,null,null,null,null,null,null,null,null,null,null,null,"年\n号"]
[]
[]
[null,null,null,null," 小学生",null,null,null,null,null,null,null,null,null,null,null,null,null,null,null,null,null,null,null,null,null,null,null,null,null,null,null,null,null,null,"昭\n和",null,null,null,null,null,null,null,"男"]
[null,null,null,null," 中学生"]
[null,null,null,null," 教員"]
[null,null,null,null," その他",null,null,null,null,null,null,null,null,null,null,null,null,null,null,null,null,null,null,null,null,null,null,null,null,null,null,null,null,null,null,null,null,null,null,null,null,null,null,"女"]
[null,null,null,null,null,null,null,null,null,null,null,null,null,null,null,null,null,null,null,null,null,null,null,null,null,null,null,null,null,null,null,null,null,null,null,"平成"]
[]
[]
[]
[]
[]
[]
[]
[null,null,null,null,"氏　　　　名"]
[]
[]
[]
[]
[]
[]
[]
[]
[]
[]
[]
[]
[]
[]
[]
[]
[]
[]
[]
[null,"No",10,"団体名",null,null,null,null,null,null,null,null,null,null,null,null,null,null,"所属",null,null,null,null,null,null,null,null,null,null,null,null,null,null,"氏名(漢字)",null,null,null,null,null,null,null,null,null,null,null,null,null,"氏名(カナ)",null,null,null,{"$f":"②入力シート!R21&\"　\"&②入力シート!S21&\"　\"&②入力シート!T21","v":"　　"}]
[]
[null,null,null,null,"個 人 属 性",null,null,null,null,"学年",null,"クラス",null,"出席\n番号",null,"I　　　D　　　番　　　号",null,null,null,null,null,null,null,null,null,null,null,null,null,null,null,null,null,null,"生　年　月　日",null,null,null,null,null,null,null,"性\n\n別"]
[null,null,null,null,null,null,null,null,null,null,"年",null,null,null,null,null,null,null,null,null,null,null,null,null,null,null,null,null,null,null,null,null,null,null,null,"年\n号"]
[]
[]
[null,null,null,null," 小学生",null,null,null,null,null,null,null,null,null,null,null,null,null,null,null,null,null,null,null,null,null,null,null,null,null,null,null,null,null,null,"昭\n和",null,null,null,null,null,null,null,"男"]
[null,null,null,null," 中学生"]
[null,null,null,null," 教員"]
[null,null,null,null," その他",null,null,null,null,null,null,null,null,null,null,null,null,null,null,null,null,null,null,null,null,null,null,null,null,null,null,null,null,null,null,null,null,null,null,null,null,null,null,"女"]
[null,null,null,null,null,null,null,null,null,null,null,null,null,null,null,null,null,null,null,null,null,null,null,null,null,null,null,null,null,null,null,null,null,null,null,"平成"]
[]
[]
[]
[]
[]
[]
[]
[null,null,null,null,"氏　　　　名"]
[]
[]
[]
[]
[]
[]
[]
[]
[]
[]
[]
[]
[]
[]
[]
[]
[]
[]
[]
[null,"No",11,"団体名",null,null,null,null,null,null,null,null,null,null,null,null,null,null,"所属",null,null,null,null,null,null,null,null,null,null,null,null,null,null,"氏名(漢字)",null,null,null,null,null,null,null,null,null,null,null,null,null,"氏名(カナ)",null,null,null,{"$f":"②入力シート!R22&\"　\"&②入力シート!S22&\"　\"&②入力シート!T22","v":"　　"}]
[]
[null,null,null,null,"個 人 属 性",null,null,null,null,"学年",null,"クラス",null,"出席\n番号",null,"I　　　D　　　番　　　号",null,null,null,null,null,null,null,null,null,null,null,null,null,null,null,null,null,null,"生　年　月　日",null,null,null,null,null,null,null,"性\n\n別"]
[null,null,null,null,null,null,null,null,null,null,"年",null,null,null,null,null,null,null,null,null,null,null,null,null,null,null,null,null,null,null,null,null,null,null,null,"年\n号"]
[]
[]
[null,null,null,null," 小学生",null,null,null,null,null,null,null,null,null,null,null,null,null,null,null,null,null,null,null,null,null,null,null,null,null,null,null,null,null,null,"昭\n和",null,null,null,null,null,null,null,"男"]
[null,null,null,null," 中学生"]
[null,null,null,null," 教員"]
[null,null,null,null," その他",null,null,null,null,null,null,null,null,null,null,null,null,null,null,null,null,null,null,null,null,null,null,null,null,null,null,null,null,null,null,null,null,null,null,null,null,null,null,"女"]
[null,null,null,null,null,null,null,null,null,null,null,null,null,null,null,null,null,null,null,null,null,null,null,null,null,null,null,null,null,null,null,null,null,null,null,"平成"]
[]
[]
[]
[]
[]
[]
[]
[null,null,null,null,"氏　　　　名"]
[]
[]
[]
[]
[]
[]
[]
[]
[]
[]
[]
[]
[]
[]
[]
[]
[]
[]
[]
[null,"No",12,"団体名",null,null,null,null,null,null,null,null,null,null,null,null,null,null,"所属",null,null,null,null,null,null,null,null,null,null,null,null,null,null,"氏名(漢字)",null,null,null,null,null,null,null,null,null,null,null,null,null,"氏名(カナ)",null,null,null,{"$f":"②入力シート!R23&\"　\"&②入力シート!S23&\"　\"&②入力シート!T23","v":"　　"}]
[]
[null,null,null,null,"個 人 属 性",null,null,null,null,"学年",null,"クラス",null,"出席\n番号",null,"I　　　D　　　番　　　号",null,null,null,null,null,null,null,null,null,null,null,null,null,null,null,null,null,null,"生　年　月　日",null,null,null,null,null,null,null,"性\n\n別"]
[null,null,null,null,null,null,null,null,null,null,"年",null,null,null,null,null,null,null,null,null,null,null,null,null,null,null,null,null,null,null,null,null,null,null,null,"年\n号"]
[]
[]
[null,null,null,null," 小学生",null,null,null,null,null,null,null,null,null,null,null,null,null,null,null,null,null,null,null,null,null,null,null,null,null,null,null,null,null,null,"昭\n和",null,null,null,null,null,null,null,"男"]
[null,null,null,null," 中学生"]
[null,null,null,null," 教員"]
[null,null,null,null," その他",null,null,null,null,null,null,null,null,null,null,null,null,null,null,null,null,null,null,null,null,null,null,null,null,null,null,null,null,null,null,null,null,null,null,null,null,null,null,"女"]
[null,null,null,null,null,null,null,null,null,null,null,null,null,null,null,null,null,null,null,null,null,null,null,null,null,null,null,null,null,null,null,null,null,null,null,"平成"]
[]
[]
[]
[]
[]
[]
[]
[null,null,null,null,"氏　　　　名"]
[]
[]
[]
[]
[]
[]
[]
[]
[]
[]
[]
[]
[]
[]
[]
[]
[]
[]
[]
[null,"No",13,"団体名",null,null,null,null,null,null,null,null,null,null,null,null,null,null,"所属",null,null,null,null,null,null,null,null,null,null,null,null,null,null,"氏名(漢字)",null,null,null,null,null,null,null,null,null,null,null,null,null,"氏名(カナ)",null,null,null,{"$f":"②入力シート!R24&\"　\"&②入力シート!S24&\"　\"&②入力シート!T24","v":"　　"}]
[]
[null,null,null,null,"個 人 属 性",null,null,null,null,"学年",null,"クラス",null,"出席\n番号",null,"I　　　D　　　番　　　号",null,null,null,null,null,null,null,null,null,null,null,null,null,null,null,null,null,null,"生　年　月　日",null,null,null,null,null,null,null,"性\n\n別"]
[null,null,null,null,null,null,null,null,null,null,"年",null,null,null,null,null,null,null,null,null,null,null,null,null,null,null,null,null,null,null,null,null,null,null,null,"年\n号"]
[]
[]
[null,null,null,null," 小学生",null,null,null,null,null,null,null,null,null,null,null,null,null,null,null,null,null,null,null,null,null,null,null,null,null,null,null,null,null,null,"昭\n和",null,null,null,null,null,null,null,"男"]
[null,null,null,null," 中学生"]
[null,null,null,null," 教員"]
[null,null,null,null," その他",null,null,null,null,null,null,null,null,null,null,null,null,null,null,null,null,null,null,null,null,null,null,null,null,null,null,null,null,null,null,null,null,null,null,null,null,null,null,"女"]
[null,null,null,null,null,null,null,null,null,null,null,null,null,null,null,null,null,null,null,null,null,null,null,null,null,null,null,null,null,null,null,null,null,null,null,"平成"]
[]
[]
[]
[]
[]
[]
[]
[null,null,null,null,"氏　　　　名"]
[]
[]
[]
[]
[]
[]
[]
[]
[]
[]
[]
[]
[]
[]
[]
[]
[]
[]
[]
[null,"No",14,"団体名",null,null,null,null,null,null,null,null,null,null,null,null,null,null,"所属",null,null,null,null,null,null,null,null,null,null,null,null,null,null,"氏名(漢字)",null,null,null,null,null,null,null,null,null,null,null,null,null,"氏名(カナ)",null,null,null,{"$f":"②入力シート!R25&\"　\"&②入力シート!S25&\"　\"&②入力シート!T25","v":"　　"}]
[]
[null,null,null,null,"個 人 属 性",null,null,null,null,"学年",null,"クラス",null,"出席\n番号",null,"I　　　D　　　番　　　号",null,null,null,null,null,null,null,null,null,null,null,null,null,null,null,null,null,null,"生　年　月　日",null,null,null,null,null,null,null,"性\n\n別"]
[null,null,null,null,null,null,null,null,null,null,"年",null,null,null,null,null,null,null,null,null,null,null,null,null,null,null,null,null,null,null,null,null,null,null,null,"年\n号"]
[]
[]
[null,null,null,null," 小学生",null,null,null,null,null,null,null,null,null,null,null,null,null,null,null,null,null,null,null,null,null,null,null,null,null,null,null,null,null,null,"昭\n和",null,null,null,null,null,null,null,"男"]
[null,null,null,null," 中学生"]
[null,null,null,null," 教員"]
[null,null,null,null," その他",null,null,null,null,null,null,null,null,null,null,null,null,null,null,null,null,null,null,null,null,null,null,null,null,null,null,null,null,null,null,null,null,null,null,null,null,null,null,"女"]
[null,null,null,null,null,null,null,null,null,null,null,null,null,null,null,null,null,null,null,null,null,null,null,null,null,null,null,null,null,null,null,null,null,null,null,"平成"]
[]
[]
[]
[]
[]
[]
[]
[null,null,null,null,"氏　　　　名"]
[]
[]
[]
[]
[]
[]
[]
[]
[]
[]
[]
[]
[]
[]
[]
[]
[]
[]
[]
[null,"No",15,"団体名",null,null,null,null,null,null,null,null,null,null,null,null,null,null,"所属",null,null,null,null,null,null,null,null,null,null,null,null,null,null,"氏名(漢字)",null,null,null,null,null,null,null,null,null,null,null,null,null,"氏名(カナ)",null,null,null,{"$f":"②入力シート!R26&\"　\"&②入力シート!S26&\"　\"&②入力シート!T26","v":"　　"}]
[]
[null,null,null,null,"個 人 属 性",null,null,null,null,"学年",null,"クラス",null,"出席\n番号",null,"I　　　D　　　番　　　号",null,null,null,null,null,null,null,null,null,null,null,null,null,null,null,null,null,null,"生　年　月　日",null,null,null,null,null,null,null,"性\n\n別"]
[null,null,null,null,null,null,null,null,null,null,"年",null,null,null,null,null,null,null,null,null,null,null,null,null,null,null,null,null,null,null,null,null,null,null,null,"年\n号"]
[]
[]
[null,null,null,null," 小学生",null,null,null,null,null,null,null,null,null,null,null,null,null,null,null,null,null,null,null,null,null,null,null,null,null,null,null,null,null,null,"昭\n和",null,null,null,null,null,null,null,"男"]
[null,null,null,null," 中学生"]
[null,null,null,null," 教員"]
[null,null,null,null," その他",null,null,null,null,null,null,null,null,null,null,null,null,null,null,null,null,null,null,null,null,null,null,null,null,null,null,null,null,null,null,null,null,null,null,null,null,null,null,"女"]
[null,null,null,null,null,null,null,null,null,null,null,null,null,null,null,null,null,null,null,null,null,null,null,null,null,null,null,null,null,null,null,null,null,null,null,"平成"]
[]
[]
[]
[]
[]
[]
[]
[null,null,null,null,"氏　　　　名"]
[]
[]
[]
[]
[]
[]
[]
[]
[]
[]
[]
[]
[]
[]
[]
[]
[]
[]
[]
[null,"No",16,"団体名",null,null,null,null,null,null,null,null,null,null,null,null,null,null,"所属",null,null,null,null,null,null,null,null,null,null,null,null,null,null,"氏名(漢字)",null,null,null,null,null,null,null,null,null,null,null,null,null,"氏名(カナ)",null,null,null,{"$f":"②入力シート!R27&\"　\"&②入力シート!S27&\"　\"&②入力シート!T27","v":"　　"}]
[]
[null,null,null,null,"個 人 属 性",null,null,null,null,"学年",null,"クラス",null,"出席\n番号",null,"I　　　D　　　番　　　号",null,null,null,null,null,null,null,null,null,null,null,null,null,null,null,null,null,null,"生　年　月　日",null,null,null,null,null,null,null,"性\n\n別"]
[null,null,null,null,null,null,null,null,null,null,"年",null,null,null,null,null,null,null,null,null,null,null,null,null,null,null,null,null,null,null,null,null,null,null,null,"年\n号"]
[]
[]
[null,null,null,null," 小学生",null,null,null,null,null,null,null,null,null,null,null,null,null,null,null,null,null,null,null,null,null,null,null,null,null,null,null,null,null,null,"昭\n和",null,null,null,null,null,null,null,"男"]
[null,null,null,null," 中学生"]
[null,null,null,null," 教員"]
[null,null,null,null," その他",null,null,null,null,null,null,null,null,null,null,null,null,null,null,null,null,null,null,null,null,null,null,null,null,null,null,null,null,null,null,null,null,null,null,null,null,null,null,"女"]
[null,null,null,null,null,null,null,null,null,null,null,null,null,null,null,null,null,null,null,null,null,null,null,null,null,null,null,null,null,null,null,null,null,null,null,"平成"]
[]
[]
[]
[]
[]
[]
[]
[null,null,null,null,"氏　　　　名"]
[]
[]
[]
[]
[]
[]
[]
[]
[]
[]
[]
[]
[]
[]
[]
[]
[]
[]
[]
[null,"No",17,"団体名",null,null,null,null,null,null,null,null,null,null,null,null,null,null,"所属",null,null,null,null,null,null,null,null,null,null,null,null,null,null,"氏名(漢字)",null,null,null,null,null,null,null,null,null,null,null,null,null,"氏名(カナ)",null,null,null,{"$f":"②入力シート!R28&\"　\"&②入力シート!S28&\"　\"&②入力シート!T28","v":"　　"}]
[]
[null,null,null,null,"個 人 属 性",null,null,null,null,"学年",null,"クラス",null,"出席\n番号",null,"I　　　D　　　番　　　号",null,null,null,null,null,null,null,null,null,null,null,null,null,null,null,null,null,null,"生　年　月　日",null,null,null,null,null,null,null,"性\n\n別"]
[null,null,null,null,null,null,null,null,null,null,"年",null,null,null,null,null,null,null,null,null,null,null,null,null,null,null,null,null,null,null,null,null,null,null,null,"年\n号"]
[]
[]
[null,null,null,null," 小学生",null,null,null,null,null,null,null,null,null,null,null,null,null,null,null,null,null,null,null,null,null,null,null,null,null,null,null,null,null,null,"昭\n和",null,null,null,null,null,null,null,"男"]
[null,null,null,null," 中学生"]
[null,null,null,null," 教員"]
[null,null,null,null," その他",null,null,null,null,null,null,null,null,null,null,null,null,null,null,null,null,null,null,null,null,null,null,null,null,null,null,null,null,null,null,null,null,null,null,null,null,null,null,"女"]
[null,null,null,null,null,null,null,null,null,null,null,null,null,null,null,null,null,null,null,null,null,null,null,null,null,null,null,null,null,null,null,null,null,null,null,"平成"]
[]
[]
[]
[]
[]
[]
[]
[null,null,null,null,"氏　　　　名"]
[]
[]
[]
[]
[]
[]
[]
[]
[]
[]
[]
[]
[]
[]
[]
[]
[]
[]
[]
[null,"No",18,"団体名",null,null,null,null,null,null,null,null,null,null,null,null,null,null,"所属",null,null,null,null,null,null,null,null,null,null,null,null,null,null,"氏名(漢字)",null,null,null,null,null,null,null,null,null,null,null,null,null,"氏名(カナ)",null,null,null,{"$f":"②入力シート!R29&\"　\"&②入力シート!S29&\"　\"&②入力シート!T29","v":"　　"}]
[]
[null,null,null,null,"個 人 属 性",null,null,null,null,"学年",null,"クラス",null,"出席\n番号",null,"I　　　D　　　番　　　号",null,null,null,null,null,null,null,null,null,null,null,null,null,null,null,null,null,null,"生　年　月　日",null,null,null,null,null,null,null,"性\n\n別"]
[null,null,null,null,null,null,null,null,null,null,"年",null,null,null,null,null,null,null,null,null,null,null,null,null,null,null,null,null,null,null,null,null,null,null,null,"年\n号"]
[]
[]
[null,null,null,null," 小学生",null,null,null,null,null,null,null,null,null,null,null,null,null,null,null,null,null,null,null,null,null,null,null,null,null,null,null,null,null,null,"昭\n和",null,null,null,null,null,null,null,"男"]
[null,null,null,null," 中学生"]
[null,null,null,null," 教員"]
[null,null,null,null," その他",null,null,null,null,null,null,null,null,null,null,null,null,null,null,null,null,null,null,null,null,null,null,null,null,null,null,null,null,null,null,null,null,null,null,null,null,null,null,"女"]
[null,null,null,null,null,null,null,null,null,null,null,null,null,null,null,null,null,null,null,null,null,null,null,null,null,null,null,null,null,null,null,null,null,null,null,"平成"]
[]
[]
[]
[]
[]
[]
[]
[null,null,null,null,"氏　　　　名"]
[]
[]
[]
[]
[]
[]
[]
[]
[]
[]
[]
[]
[]
[]
[]
[]
[]
[]
[]
[null,"No",19,"団体名",null,null,null,null,null,null,null,null,null,null,null,null,null,null,"所属",null,null,null,null,null,null,null,null,null,null,null,null,null,null,"氏名(漢字)",null,null,null,null,null,null,null,null,null,null,null,null,null,"氏名(カナ)",null,null,null,{"$f":"②入力シート!R30&\"　\"&②入力シート!S30&\"　\"&②入力シート!T30","v":"　　"}]
[]
[null,null,null,null,"個 人 属 性",null,null,null,null,"学年",null,"クラス",null,"出席\n番号",null,"I　　　D　　　番　　　号",null,null,null,null,null,null,null,null,null,null,null,null,null,null,null,null,null,null,"生　年　月　日",null,null,null,null,null,null,null,"性\n\n別"]
[null,null,null,null,null,null,null,null,null,null,"年",null,null,null,null,null,null,null,null,null,null,null,null,null,null,null,null,null,null,null,null,null,null,null,null,"年\n号"]
[]
[]
[null,null,null,null," 小学生",null,null,null,null,null,null,null,null,null,null,null,null,null,null,null,null,null,null,null,null,null,null,null,null,null,null,null,null,null,null,"昭\n和",null,null,null,null,null,null,null,"男"]
[null,null,null,null," 中学生"]
[null,null,null,null," 教員"]
[null,null,null,null," その他",null,null,null,null,null,null,null,null,null,null,null,null,null,null,null,null,null,null,null,null,null,null,null,null,null,null,null,null,null,null,null,null,null,null,null,null,null,null,"女"]
[null,null,null,null,null,null,null,null,null,null,null,null,null,null,null,null,null,null,null,null,null,null,null,null,null,null,null,null,null,null,null,null,null,null,null,"平成"]
[]
[]
[]
[]
[]
[]
[]
[null,null,null,null,"氏　　　　名"]
[]
[]
[]
[]
[]
[]
[]
[]
[]
[]
[]
[]
[]
[]
[]
[]
[]
[]
[]
[null,"No",20,"団体名",null,null,null,null,null,null,null,null,null,null,null,null,null,null,"所属",null,null,null,null,null,null,null,null,null,null,null,null,null,null,"氏名(漢字)",null,null,null,null,null,null,null,null,null,null,null,null,null,"氏名(カナ)",null,null,null,{"$f":"②入力シート!R31&\"　\"&②入力シート!S31&\"　\"&②入力シート!T31","v":"　　"}]
[]
[null,null,null,null,"個 人 属 性",null,null,null,null,"学年",null,"クラス",null,"出席\n番号",null,"I　　　D　　　番　　　号",null,null,null,null,null,null,null,null,null,null,null,null,null,null,null,null,null,null,"生　年　月　日",null,null,null,null,null,null,null,"性\n\n別"]
[null,null,null,null,null,null,null,null,null,null,"年",null,null,null,null,null,null,null,null,null,null,null,null,null,null,null,null,null,null,null,null,null,null,null,null,"年\n号"]
[]
[]
[null,null,null,null," 小学生",null,null,null,null,null,null,null,null,null,null,null,null,null,null,null,null,null,null,null,null,null,null,null,null,null,null,null,null,null,null,"昭\n和",null,null,null,null,null,null,null,"男"]
[null,null,null,null," 中学生"]
[null,null,null,null," 教員"]
[null,null,null,null," その他",null,null,null,null,null,null,null,null,null,null,null,null,null,null,null,null,null,null,null,null,null,null,null,null,null,null,null,null,null,null,null,null,null,null,null,null,null,null,"女"]
[null,null,null,null,null,null,null,null,null,null,null,null,null,null,null,null,null,null,null,null,null,null,null,null,null,null,null,null,null,null,null,null,null,null,null,"平成"]
[]
[]
[]
[]
[]
[]
[]
[null,null,null,null,"氏　　　　名"]
[]
[]
[]
[]
[]
[]
[]
[]
[]
[]
[]
[]
[]
[]
[]
[]
[]
[]
[]
[null,"No",21,"団体名",null,null,null,null,null,null,null,null,null,null,null,null,null,null,"所属",null,null,null,null,null,null,null,null,null,null,null,null,null,null,"氏名(漢字)",null,null,null,null,null,null,null,null,null,null,null,null,null,"氏名(カナ)",null,null,null,{"$f":"②入力シート!R32&\"　\"&②入力シート!S32&\"　\"&②入力シート!T32","v":"　　"}]
[]
[null,null,null,null,"個 人 属 性",null,null,null,null,"学年",null,"クラス",null,"出席\n番号",null,"I　　　D　　　番　　　号",null,null,null,null,null,null,null,null,null,null,null,null,null,null,null,null,null,null,"生　年　月　日",null,null,null,null,null,null,null,"性\n\n別"]
[null,null,null,null,null,null,null,null,null,null,"年",null,null,null,null,null,null,null,null,null,null,null,null,null,null,null,null,null,null,null,null,null,null,null,null,"年\n号"]
[]
[]
[null,null,null,null," 小学生",null,null,null,null,null,null,null,null,null,null,null,null,null,null,null,null,null,null,null,null,null,null,null,null,null,null,null,null,null,null,"昭\n和",null,null,null,null,null,null,null,"男"]
[null,null,null,null," 中学生"]
[null,null,null,null," 教員"]
[null,null,null,null," その他",null,null,null,null,null,null,null,null,null,null,null,null,null,null,null,null,null,null,null,null,null,null,null,null,null,null,null,null,null,null,null,null,null,null,null,null,null,null,"女"]
[null,null,null,null,null,null,null,null,null,null,null,null,null,null,null,null,null,null,null,null,null,null,null,null,null,null,null,null,null,null,null,null,null,null,null,"平成"]
[]
[]
[]
[]
[]
[]
[]
[null,null,null,null,"氏　　　　名"]
[]
[]
[]
[]
[]
[]
[]
[]
[]
[]
[]
[]
[]
[]
[]
[]
[]
[]
[]
[null,"No",22,"団体名",null,null,null,null,null,null,null,null,null,null,null,null,null,null,"所属",null,null,null,null,null,null,null,null,null,null,null,null,null,null,"氏名(漢字)",null,null,null,null,null,null,null,null,null,null,null,null,null,"氏名(カナ)",null,null,null,{"$f":"②入力シート!R33&\"　\"&②入力シート!S33&\"　\"&②入力シート!T33","v":"　　"}]
[]
[null,null,null,null,"個 人 属 性",null,null,null,null,"学年",null,"クラス",null,"出席\n番号",null,"I　　　D　　　番　　　号",null,null,null,null,null,null,null,null,null,null,null,null,null,null,null,null,null,null,"生　年　月　日",null,null,null,null,null,null,null,"性\n\n別"]
[null,null,null,null,null,null,null,null,null,null,"年",null,null,null,null,null,null,null,null,null,null,null,null,null,null,null,null,null,null,null,null,null,null,null,null,"年\n号"]
[]
[]
[null,null,null,null," 小学生",null,null,null,null,null,null,null,null,null,null,null,null,null,null,null,null,null,null,null,null,null,null,null,null,null,null,null,null,null,null,"昭\n和",null,null,null,null,null,null,null,"男"]
[null,null,null,null," 中学生"]
[null,null,null,null," 教員"]
[null,null,null,null," その他",null,null,null,null,null,null,null,null,null,null,null,null,null,null,null,null,null,null,null,null,null,null,null,null,null,null,null,null,null,null,null,null,null,null,null,null,null,null,"女"]
[null,null,null,null,null,null,null,null,null,null,null,null,null,null,null,null,null,null,null,null,null,null,null,null,null,null,null,null,null,null,null,null,null,null,null,"平成"]
[]
[]
[]
[]
[]
[]
[]
[null,null,null,null,"氏　　　　名"]
[]
[]
[]
[]
[]
[]
[]
[]
[]
[]
[]
[]
[]
[]
[]
[]
[]
[]
[]
[null,"No",23,"団体名",null,null,null,null,null,null,null,null,null,null,null,null,null,null,"所属",null,null,null,null,null,null,null,null,null,null,null,null,null,null,"氏名(漢字)",null,null,null,null,null,null,null,null,null,null,null,null,null,"氏名(カナ)",null,null,null,{"$f":"②入力シート!R34&\"　\"&②入力シート!S34&\"　\"&②入力シート!T34","v":"　　"}]
[]
[null,null,null,null,"個 人 属 性",null,null,null,null,"学年",null,"クラス",null,"出席\n番号",null,"I　　　D　　　番　　　号",null,null,null,null,null,null,null,null,null,null,null,null,null,null,null,null,null,null,"生　年　月　日",null,null,null,null,null,null,null,"性\n\n別"]
[null,null,null,null,null,null,null,null,null,null,"年",null,null,null,null,null,null,null,null,null,null,null,null,null,null,null,null,null,null,null,null,null,null,null,null,"年\n号"]
[]
[]
[null,null,null,null," 小学生",null,null,null,null,null,null,null,null,null,null,null,null,null,null,null,null,null,null,null,null,null,null,null,null,null,null,null,null,null,null,"昭\n和",null,null,null,null,null,null,null,"男"]
[null,null,null,null," 中学生"]
[null,null,null,null," 教員"]
[null,null,null,null," その他",null,null,null,null,null,null,null,null,null,null,null,null,null,null,null,null,null,null,null,null,null,null,null,null,null,null,null,null,null,null,null,null,null,null,null,null,null,null,"女"]
[null,null,null,null,null,null,null,null,null,null,null,null,null,null,null,null,null,null,null,null,null,null,null,null,null,null,null,null,null,null,null,null,null,null,null,"平成"]
[]
[]
[]
[]
[]
[]
[]
[null,null,null,null,"氏　　　　名"]
[]
[]
[]
[]
[]
[]
[]
[]
[]
[]
[]
[]
[]
[]
[]
[]
[]
[]
[]
[null,"No",24,"団体名",null,null,null,null,null,null,null,null,null,null,null,null,null,null,"所属",null,null,null,null,null,null,null,null,null,null,null,null,null,null,"氏名(漢字)",null,null,null,null,null,null,null,null,null,null,null,null,null,"氏名(カナ)",null,null,null,{"$f":"②入力シート!R35&\"　\"&②入力シート!S35&\"　\"&②入力シート!T35","v":"　　"}]
[]
[null,null,null,null,"個 人 属 性",null,null,null,null,"学年",null,"クラス",null,"出席\n番号",null,"I　　　D　　　番　　　号",null,null,null,null,null,null,null,null,null,null,null,null,null,null,null,null,null,null,"生　年　月　日",null,null,null,null,null,null,null,"性\n\n別"]
[null,null,null,null,null,null,null,null,null,null,"年",null,null,null,null,null,null,null,null,null,null,null,null,null,null,null,null,null,null,null,null,null,null,null,null,"年\n号"]
[]
[]
[null,null,null,null," 小学生",null,null,null,null,null,null,null,null,null,null,null,null,null,null,null,null,null,null,null,null,null,null,null,null,null,null,null,null,null,null,"昭\n和",null,null,null,null,null,null,null,"男"]
[null,null,null,null," 中学生"]
[null,null,null,null," 教員"]
[null,null,null,null," その他",null,null,null,null,null,null,null,null,null,null,null,null,null,null,null,null,null,null,null,null,null,null,null,null,null,null,null,null,null,null,null,null,null,null,null,null,null,null,"女"]
[null,null,null,null,null,null,null,null,null,null,null,null,null,null,null,null,null,null,null,null,null,null,null,null,null,null,null,null,null,null,null,null,null,null,null,"平成"]
[]
[]
[]
[]
[]
[]
[]
[null,null,null,null,"氏　　　　名"]
[]
[]
[]
[]
[]
[]
[]
[]
[]
[]
[]
[]
[]
[]
[]
[]
[]
[]
[]
[null,"No",25,"団体名",null,null,null,null,null,null,null,null,null,null,null,null,null,null,"所属",null,null,null,null,null,null,null,null,null,null,null,null,null,null,"氏名(漢字)",null,null,null,null,null,null,null,null,null,null,null,null,null,"氏名(カナ)",null,null,null,{"$f":"②入力シート!R36&\"　\"&②入力シート!S36&\"　\"&②入力シート!T36","v":"　　"}]
[]
[null,null,null,null,"個 人 属 性",null,null,null,null,"学年",null,"クラス",null,"出席\n番号",null,"I　　　D　　　番　　　号",null,null,null,null,null,null,null,null,null,null,null,null,null,null,null,null,null,null,"生　年　月　日",null,null,null,null,null,null,null,"性\n\n別"]
[null,null,null,null,null,null,null,null,null,null,"年",null,null,null,null,null,null,null,null,null,null,null,null,null,null,null,null,null,null,null,null,null,null,null,null,"年\n号"]
[]
[]
[null,null,null,null," 小学生",null,null,null,null,null,null,null,null,null,null,null,null,null,null,null,null,null,null,null,null,null,null,null,null,null,null,null,null,null,null,"昭\n和",null,null,null,null,null,null,null,"男"]
[null,null,null,null," 中学生"]
[null,null,null,null," 教員"]
[null,null,null,null," その他",null,null,null,null,null,null,null,null,null,null,null,null,null,null,null,null,null,null,null,null,null,null,null,null,null,null,null,null,null,null,null,null,null,null,null,null,null,null,"女"]
[null,null,null,null,null,null,null,null,null,null,null,null,null,null,null,null,null,null,null,null,null,null,null,null,null,null,null,null,null,null,null,null,null,null,null,"平成"]
[]
[]
[]
[]
[]
[]
[]
[null,null,null,null,"氏　　　　名"]
[]
[]
[]
[]
[]
[]
[]
[]
[]
[]
[]
[]
[]
[]
[]
[]
[]
[]
[]
[null,"No",26,"団体名",null,null,null,null,null,null,null,null,null,null,null,null,null,null,"所属",null,null,null,null,null,null,null,null,null,null,null,null,null,null,"氏名(漢字)",null,null,null,null,null,null,null,null,null,null,null,null,null,"氏名(カナ)",null,null,null,{"$f":"②入力シート!R37&\"　\"&②入力シート!S37&\"　\"&②入力シート!T37","v":"　　"}]
[]
[null,null,null,null,"個 人 属 性",null,null,null,null,"学年",null,"クラス",null,"出席\n番号",null,"I　　　D　　　番　　　号",null,null,null,null,null,null,null,null,null,null,null,null,null,null,null,null,null,null,"生　年　月　日",null,null,null,null,null,null,null,"性\n\n別"]
[null,null,null,null,null,null,null,null,null,null,"年",null,null,null,null,null,null,null,null,null,null,null,null,null,null,null,null,null,null,null,null,null,null,null,null,"年\n号"]
[]
[]
[null,null,null,null," 小学生",null,null,null,null,null,null,null,null,null,null,null,null,null,null,null,null,null,null,null,null,null,null,null,null,null,null,null,null,null,null,"昭\n和",null,null,null,null,null,null,null,"男"]
[null,null,null,null," 中学生"]
[null,null,null,null," 教員"]
[null,null,null,null," その他",null,null,null,null,null,null,null,null,null,null,null,null,null,null,null,null,null,null,null,null,null,null,null,null,null,null,null,null,null,null,null,null,null,null,null,null,null,null,"女"]
[null,null,null,null,null,null,null,null,null,null,null,null,null,null,null,null,null,null,null,null,null,null,null,null,null,null,null,null,null,null,null,null,null,null,null,"平成"]
[]
[]
[]
[]
[]
[]
[]
[null,null,null,null,"氏　　　　名"]
[]
[]
[]
[]
[]
[]
[]
[]
[]
[]
[]
[]
[]
[]
[]
[]
[]
[]
[]
[null,"No",27,"団体名",null,null,null,null,null,null,null,null,null,null,null,null,null,null,"所属",null,null,null,null,null,null,null,null,null,null,null,null,null,null,"氏名(漢字)",null,null,null,null,null,null,null,null,null,null,null,null,null,"氏名(カナ)",null,null,null,{"$f":"②入力シート!R38&\"　\"&②入力シート!S38&\"　\"&②入力シート!T38","v":"　　"}]
[]
[null,null,null,null,"個 人 属 性",null,null,null,null,"学年",null,"クラス",null,"出席\n番号",null,"I　　　D　　　番　　　号",null,null,null,null,null,null,null,null,null,null,null,null,null,null,null,null,null,null,"生　年　月　日",null,null,null,null,null,null,null,"性\n\n別"]
[null,null,null,null,null,null,null,null,null,null,"年",null,null,null,null,null,null,null,null,null,null,null,null,null,null,null,null,null,null,null,null,null,null,null,null,"年\n号"]
[]
[]
[null,null,null,null," 小学生",null,null,null,null,null,null,null,null,null,null,null,null,null,null,null,null,null,null,null,null,null,null,null,null,null,null,null,null,null,null,"昭\n和",null,null,null,null,null,null,null,"男"]
[null,null,null,null," 中学生"]
[null,null,null,null," 教員"]
[null,null,null,null," その他",null,null,null,null,null,null,null,null,null,null,null,null,null,null,null,null,null,null,null,null,null,null,null,null,null,null,null,null,null,null,null,null,null,null,null,null,null,null,"女"]
[null,null,null,null,null,null,null,null,null,null,null,null,null,null,null,null,null,null,null,null,null,null,null,null,null,null,null,null,null,null,null,null,null,null,null,"平成"]
[]
[]
[]
[]
[]
[]
[]
[null,null,null,null,"氏　　　　名"]
[]
[]
[]
[]
[]
[]
[]
[]
[]
[]
[]
[]
[]
[]
[]
[]
[]
[]
[]
[null,"No",28,"団体名",null,null,null,null,null,null,null,null,null,null,null,null,null,null,"所属",null,null,null,null,null,null,null,null,null,null,null,null,null,null,"氏名(漢字)",null,null,null,null,null,null,null,null,null,null,null,null,null,"氏名(カナ)",null,null,null,{"$f":"②入力シート!R39&\"　\"&②入力シート!S39&\"　\"&②入力シート!T39","v":"　　"}]
[]
[null,null,null,null,"個 人 属 性",null,null,null,null,"学年",null,"クラス",null,"出席\n番号",null,"I　　　D　　　番　　　号",null,null,null,null,null,null,null,null,null,null,null,null,null,null,null,null,null,null,"生　年　月　日",null,null,null,null,null,null,null,"性\n\n別"]
[null,null,null,null,null,null,null,null,null,null,"年",null,null,null,null,null,null,null,null,null,null,null,null,null,null,null,null,null,null,null,null,null,null,null,null,"年\n号"]
[]
[]
[null,null,null,null," 小学生",null,null,null,null,null,null,null,null,null,null,null,null,null,null,null,null,null,null,null,null,null,null,null,null,null,null,null,null,null,null,"昭\n和",null,null,null,null,null,null,null,"男"]
[null,null,null,null," 中学生"]
[null,null,null,null," 教員"]
[null,null,null,null," その他",null,null,null,null,null,null,null,null,null,null,null,null,null,null,null,null,null,null,null,null,null,null,null,null,null,null,null,null,null,null,null,null,null,null,null,null,null,null,"女"]
[null,null,null,null,null,null,null,null,null,null,null,null,null,null,null,null,null,null,null,null,null,null,null,null,null,null,null,null,null,null,null,null,null,null,null,"平成"]
[]
[]
[]
[]
[]
[]
[]
[null,null,null,null,"氏　　　　名"]
[]
[]
[]
[]
[]
[]
[]
[]
[]
[]
[]
[]
[]
[]
[]
[]
[]
[]
[]
[null,"No",29,"団体名",null,null,null,null,null,null,null,null,null,null,null,null,null,null,"所属",null,null,null,null,null,null,null,null,null,null,null,null,null,null,"氏名(漢字)",null,null,null,null,null,null,null,null,null,null,null,null,null,"氏名(カナ)",null,null,null,{"$f":"②入力シート!R40&\"　\"&②入力シート!S40&\"　\"&②入力シート!T40","v":"　　"}]
[]
[null,null,null,null,"個 人 属 性",null,null,null,null,"学年",null,"クラス",null,"出席\n番号",null,"I　　　D　　　番　　　号",null,null,null,null,null,null,null,null,null,null,null,null,null,null,null,null,null,null,"生　年　月　日",null,null,null,null,null,null,null,"性\n\n別"]
[null,null,null,null,null,null,null,null,null,null,"年",null,null,null,null,null,null,null,null,null,null,null,null,null,null,null,null,null,null,null,null,null,null,null,null,"年\n号"]
[]
[]
[null,null,null,null," 小学生",null,null,null,null,null,null,null,null,null,null,null,null,null,null,null,null,null,null,null,null,null,null,null,null,null,null,null,null,null,null,"昭\n和",null,null,null,null,null,null,null,"男"]
[null,null,null,null," 中学生"]
[null,null,null,null," 教員"]
[null,null,null,null," その他",null,null,null,null,null,null,null,null,null,null,null,null,null,null,null,null,null,null,null,null,null,null,null,null,null,null,null,null,null,null,null,null,null,null,null,null,null,null,"女"]
[null,null,null,null,null,null,null,null,null,null,null,null,null,null,null,null,null,null,null,null,null,null,null,null,null,null,null,null,null,null,null,null,null,null,null,"平成"]
[]
[]
[]
[]
[]
[]
[]
[null,null,null,null,"氏　　　　名"]
[]
[]
[]
[]
[]
[]
[]
[]
[]
[]
[]
[]
[]
[]
[]
[]
[]
[]
[]
[null,"No",30,"団体名",null,null,null,null,null,null,null,null,null,null,null,null,null,null,"所属",null,null,null,null,null,null,null,null,null,null,null,null,null,null,"氏名(漢字)",null,null,null,null,null,null,null,null,null,null,null,null,null,"氏名(カナ)",null,null,null,{"$f":"②入力シート!R41&\"　\"&②入力シート!S41&\"　\"&②入力シート!T41","v":"　　"}]
[]
[null,null,null,null,"個 人 属 性",null,null,null,null,"学年",null,"クラス",null,"出席\n番号",null,"I　　　D　　　番　　　号",null,null,null,null,null,null,null,null,null,null,null,null,null,null,null,null,null,null,"生　年　月　日",null,null,null,null,null,null,null,"性\n\n別"]
[null,null,null,null,null,null,null,null,null,null,"年",null,null,null,null,null,null,null,null,null,null,null,null,null,null,null,null,null,null,null,null,null,null,null,null,"年\n号"]
[]
[]
[null,null,null,null," 小学生",null,null,null,null,null,null,null,null,null,null,null,null,null,null,null,null,null,null,null,null,null,null,null,null,null,null,null,null,null,null,"昭\n和",null,null,null,null,null,null,null,"男"]
[null,null,null,null," 中学生"]
[null,null,null,null," 教員"]
[null,null,null,null," その他",null,null,null,null,null,null,null,null,null,null,null,null,null,null,null,null,null,null,null,null,null,null,null,null,null,null,null,null,null,null,null,null,null,null,null,null,null,null,"女"]
[null,null,null,null,null,null,null,null,null,null,null,null,null,null,null,null,null,null,null,null,null,null,null,null,null,null,null,null,null,null,null,null,null,null,null,"平成"]
[]
[]
[]
[]
[]
[]
[]
[null,null,null,null,"氏　　　　名"]
[]
[]
[]
[]
[]
[]
[]
[]
[]
[]
[]
[]
[]
[]
[]
[]
[]
[]
[]
[null,"No",31,"団体名",null,null,null,null,null,null,null,null,null,null,null,null,null,null,"所属",null,null,null,null,null,null,null,null,null,null,null,null,null,null,"氏名(漢字)",null,null,null,null,null,null,null,null,null,null,null,null,null,"氏名(カナ)",null,null,null,{"$f":"②入力シート!R42&\"　\"&②入力シート!S42&\"　\"&②入力シート!T42","v":"　　"}]
[]
[null,null,null,null,"個 人 属 性",null,null,null,null,"学年",null,"クラス",null,"出席\n番号",null,"I　　　D　　　番　　　号",null,null,null,null,null,null,null,null,null,null,null,null,null,null,null,null,null,null,"生　年　月　日",null,null,null,null,null,null,null,"性\n\n別"]
[null,null,null,null,null,null,null,null,null,null,"年",null,null,null,null,null,null,null,null,null,null,null,null,null,null,null,null,null,null,null,null,null,null,null,null,"年\n号"]
[]
[]
[null,null,null,null," 小学生",null,null,null,null,null,null,null,null,null,null,null,null,null,null,null,null,null,null,null,null,null,null,null,null,null,null,null,null,null,null,"昭\n和",null,null,null,null,null,null,null,"男"]
[null,null,null,null," 中学生"]
[null,null,null,null," 教員"]
[null,null,null,null," その他",null,null,null,null,null,null,null,null,null,null,null,null,null,null,null,null,null,null,null,null,null,null,null,null,null,null,null,null,null,null,null,null,null,null,null,null,null,null,"女"]
[null,null,null,null,null,null,null,null,null,null,null,null,null,null,null,null,null,null,null,null,null,null,null,null,null,null,null,null,null,null,null,null,null,null,null,"平成"]
[]
[]
[]
[]
[]
[]
[]
[null,null,null,null,"氏　　　　名"]
[]
[]
[]
[]
[]
[]
[]
[]
[]
[]
[]
[]
[]
[]
[]
[]
[]
[]
[]
[null,"No",32,"団体名",null,null,null,null,null,null,null,null,null,null,null,null,null,null,"所属",null,null,null,null,null,null,null,null,null,null,null,null,null,null,"氏名(漢字)",null,null,null,null,null,null,null,null,null,null,null,null,null,"氏名(カナ)",null,null,null,{"$f":"②入力シート!R43&\"　\"&②入力シート!S43&\"　\"&②入力シート!T43","v":"　　"}]
[]
[null,null,null,null,"個 人 属 性",null,null,null,null,"学年",null,"クラス",null,"出席\n番号",null,"I　　　D　　　番　　　号",null,null,null,null,null,null,null,null,null,null,null,null,null,null,null,null,null,null,"生　年　月　日",null,null,null,null,null,null,null,"性\n\n別"]
[null,null,null,null,null,null,null,null,null,null,"年",null,null,null,null,null,null,null,null,null,null,null,null,null,null,null,null,null,null,null,null,null,null,null,null,"年\n号"]
[]
[]
[null,null,null,null," 小学生",null,null,null,null,null,null,null,null,null,null,null,null,null,null,null,null,null,null,null,null,null,null,null,null,null,null,null,null,null,null,"昭\n和",null,null,null,null,null,null,null,"男"]
[null,null,null,null," 中学生"]
[null,null,null,null," 教員"]
[null,null,null,null," その他",null,null,null,null,null,null,null,null,null,null,null,null,null,null,null,null,null,null,null,null,null,null,null,null,null,null,null,null,null,null,null,null,null,null,null,null,null,null,"女"]
[null,null,null,null,null,null,null,null,null,null,null,null,null,null,null,null,null,null,null,null,null,null,null,null,null,null,null,null,null,null,null,null,null,null,null,"平成"]
[]
[]
[]
[]
[]
[]
[]
[null,null,null,null,"氏　　　　名"]
[]
[]
[]
[]
[]
[]
[]
[]
[]
[]
[]
[]
[]
[]
[]
[]
[]
[]
[]
[null,"No",33,"団体名",null,null,null,null,null,null,null,null,null,null,null,null,null,null,"所属",null,null,null,null,null,null,null,null,null,null,null,null,null,null,"氏名(漢字)",null,null,null,null,null,null,null,null,null,null,null,null,null,"氏名(カナ)",null,null,null,{"$f":"②入力シート!R44&\"　\"&②入力シート!S44&\"　\"&②入力シート!T44","v":"　　"}]
[]
[null,null,null,null,"個 人 属 性",null,null,null,null,"学年",null,"クラス",null,"出席\n番号",null,"I　　　D　　　番　　　号",null,null,null,null,null,null,null,null,null,null,null,null,null,null,null,null,null,null,"生　年　月　日",null,null,null,null,null,null,null,"性\n\n別"]
[null,null,null,null,null,null,null,null,null,null,"年",null,null,null,null,null,null,null,null,null,null,null,null,null,null,null,null,null,null,null,null,null,null,null,null,"年\n号"]
[]
[]
[null,null,null,null," 小学生",null,null,null,null,null,null,null,null,null,null,null,null,null,null,null,null,null,null,null,null,null,null,null,null,null,null,null,null,null,null,"昭\n和",null,null,null,null,null,null,null,"男"]
[null,null,null,null," 中学生"]
[null,null,null,null," 教員"]
[null,null,null,null," その他",null,null,null,null,null,null,null,null,null,null,null,null,null,null,null,null,null,null,null,null,null,null,null,null,null,null,null,null,null,null,null,null,null,null,null,null,null,null,"女"]
[null,null,null,null,null,null,null,null,null,null,null,null,null,null,null,null,null,null,null,null,null,null,null,null,null,null,null,null,null,null,null,null,null,null,null,"平成"]
[]
[]
[]
[]
[]
[]
[]
[null,null,null,null,"氏　　　　名"]
[]
[]
[]
[]
[]
[]
[]
[]
[]
[]
[]
[]
[]
[]
[]
[]
[]
[]
[]
[null,"No",34,"団体名",null,null,null,null,null,null,null,null,null,null,null,null,null,null,"所属",null,null,null,null,null,null,null,null,null,null,null,null,null,null,"氏名(漢字)",null,null,null,null,null,null,null,null,null,null,null,null,null,"氏名(カナ)",null,null,null,{"$f":"②入力シート!R45&\"　\"&②入力シート!S45&\"　\"&②入力シート!T45","v":"　　"}]
[]
[null,null,null,null,"個 人 属 性",null,null,null,null,"学年",null,"クラス",null,"出席\n番号",null,"I　　　D　　　番　　　号",null,null,null,null,null,null,null,null,null,null,null,null,null,null,null,null,null,null,"生　年　月　日",null,null,null,null,null,null,null,"性\n\n別"]
[null,null,null,null,null,null,null,null,null,null,"年",null,null,null,null,null,null,null,null,null,null,null,null,null,null,null,null,null,null,null,null,null,null,null,null,"年\n号"]
[]
[]
[null,null,null,null," 小学生",null,null,null,null,null,null,null,null,null,null,null,null,null,null,null,null,null,null,null,null,null,null,null,null,null,null,null,null,null,null,"昭\n和",null,null,null,null,null,null,null,"男"]
[null,null,null,null," 中学生"]
[null,null,null,null," 教員"]
[null,null,null,null," その他",null,null,null,null,null,null,null,null,null,null,null,null,null,null,null,null,null,null,null,null,null,null,null,null,null,null,null,null,null,null,null,null,null,null,null,null,null,null,"女"]
[null,null,null,null,null,null,null,null,null,null,null,null,null,null,null,null,null,null,null,null,null,null,null,null,null,null,null,null,null,null,null,null,null,null,null,"平成"]
[]
[]
[]
[]
[]
[]
[]
[null,null,null,null,"氏　　　　名"]
[]
[]
[]
[]
[]
[]
[]
[]
[]
[]
[]
[]
[]
[]
[]
[]
[]
[]
[]
[null,"No",35,"団体名",null,null,null,null,null,null,null,null,null,null,null,null,null,null,"所属",null,null,null,null,null,null,null,null,null,null,null,null,null,null,"氏名(漢字)",null,null,null,null,null,null,null,null,null,null,null,null,null,"氏名(カナ)",null,null,null,{"$f":"②入力シート!R46&\"　\"&②入力シート!S46&\"　\"&②入力シート!T46","v":"　　"}]
[]
[null,null,null,null,"個 人 属 性",null,null,null,null,"学年",null,"クラス",null,"出席\n番号",null,"I　　　D　　　番　　　号",null,null,null,null,null,null,null,null,null,null,null,null,null,null,null,null,null,null,"生　年　月　日",null,null,null,null,null,null,null,"性\n\n別"]
[null,null,null,null,null,null,null,null,null,null,"年",null,null,null,null,null,null,null,null,null,null,null,null,null,null,null,null,null,null,null,null,null,null,null,null,"年\n号"]
[]
[]
[null,null,null,null," 小学生",null,null,null,null,null,null,null,null,null,null,null,null,null,null,null,null,null,null,null,null,null,null,null,null,null,null,null,null,null,null,"昭\n和",null,null,null,null,null,null,null,"男"]
[null,null,null,null," 中学生"]
[null,null,null,null," 教員"]
[null,null,null,null," その他",null,null,null,null,null,null,null,null,null,null,null,null,null,null,null,null,null,null,null,null,null,null,null,null,null,null,null,null,null,null,null,null,null,null,null,null,null,null,"女"]
[null,null,null,null,null,null,null,null,null,null,null,null,null,null,null,null,null,null,null,null,null,null,null,null,null,null,null,null,null,null,null,null,null,null,null,"平成"]
[]
[]
[]
[]
[]
[]
[]
[null,null,null,null,"氏　　　　名"]
[]
[]
[]
[]
[]
[]
[]
[]
[]
[]
[]
[]
[]
[]
[]
[]
[]
[]
[]
[null,"No",36,"団体名",null,null,null,null,null,null,null,null,null,null,null,null,null,null,"所属",null,null,null,null,null,null,null,null,null,null,null,null,null,null,"氏名(漢字)",null,null,null,null,null,null,null,null,null,null,null,null,null,"氏名(カナ)",null,null,null,{"$f":"②入力シート!R47&\"　\"&②入力シート!S47&\"　\"&②入力シート!T47","v":"　　"}]
[]
[null,null,null,null,"個 人 属 性",null,null,null,null,"学年",null,"クラス",null,"出席\n番号",null,"I　　　D　　　番　　　号",null,null,null,null,null,null,null,null,null,null,null,null,null,null,null,null,null,null,"生　年　月　日",null,null,null,null,null,null,null,"性\n\n別"]
[null,null,null,null,null,null,null,null,null,null,"年",null,null,null,null,null,null,null,null,null,null,null,null,null,null,null,null,null,null,null,null,null,null,null,null,"年\n号"]
[]
[]
[null,null,null,null," 小学生",null,null,null,null,null,null,null,null,null,null,null,null,null,null,null,null,null,null,null,null,null,null,null,null,null,null,null,null,null,null,"昭\n和",null,null,null,null,null,null,null,"男"]
[null,null,null,null," 中学生"]
[null,null,null,null," 教員"]
[null,null,null,null," その他",null,null,null,null,null,null,null,null,null,null,null,null,null,null,null,null,null,null,null,null,null,null,null,null,null,null,null,null,null,null,null,null,null,null,null,null,null,null,"女"]
[null,null,null,null,null,null,null,null,null,null,null,null,null,null,null,null,null,null,null,null,null,null,null,null,null,null,null,null,null,null,null,null,null,null,null,"平成"]
[]
[]
[]
[]
[]
[]
[]
[null,null,null,null,"氏　　　　名"]
[]
[]
[]
[]
[]
[]
[]
[]
[]
[]
[]
[]
[]
[]
[]
[]
[]
[]
[]
[null,"No",37,"団体名",null,null,null,null,null,null,null,null,null,null,null,null,null,null,"所属",null,null,null,null,null,null,null,null,null,null,null,null,null,null,"氏名(漢字)",null,null,null,null,null,null,null,null,null,null,null,null,null,"氏名(カナ)",null,null,null,{"$f":"②入力シート!R48&\"　\"&②入力シート!S48&\"　\"&②入力シート!T48","v":"　　"}]
[]
[null,null,null,null,"個 人 属 性",null,null,null,null,"学年",null,"クラス",null,"出席\n番号",null,"I　　　D　　　番　　　号",null,null,null,null,null,null,null,null,null,null,null,null,null,null,null,null,null,null,"生　年　月　日",null,null,null,null,null,null,null,"性\n\n別"]
[null,null,null,null,null,null,null,null,null,null,"年",null,null,null,null,null,null,null,null,null,null,null,null,null,null,null,null,null,null,null,null,null,null,null,null,"年\n号"]
[]
[]
[null,null,null,null," 小学生",null,null,null,null,null,null,null,null,null,null,null,null,null,null,null,null,null,null,null,null,null,null,null,null,null,null,null,null,null,null,"昭\n和",null,null,null,null,null,null,null,"男"]
[null,null,null,null," 中学生"]
[null,null,null,null," 教員"]
[null,null,null,null," その他",null,null,null,null,null,null,null,null,null,null,null,null,null,null,null,null,null,null,null,null,null,null,null,null,null,null,null,null,null,null,null,null,null,null,null,null,null,null,"女"]
[null,null,null,null,null,null,null,null,null,null,null,null,null,null,null,null,null,null,null,null,null,null,null,null,null,null,null,null,null,null,null,null,null,null,null,"平成"]
[]
[]
[]
[]
[]
[]
[]
[null,null,null,null,"氏　　　　名"]
[]
[]
[]
[]
[]
[]
[]
[]
[]
[]
[]
[]
[]
[]
[]
[]
[]
[]
[]
[null,"No",38,"団体名",null,null,null,null,null,null,null,null,null,null,null,null,null,null,"所属",null,null,null,null,null,null,null,null,null,null,null,null,null,null,"氏名(漢字)",null,null,null,null,null,null,null,null,null,null,null,null,null,"氏名(カナ)",null,null,null,{"$f":"②入力シート!R49&\"　\"&②入力シート!S49&\"　\"&②入力シート!T49","v":"　　"}]
[]
[null,null,null,null,"個 人 属 性",null,null,null,null,"学年",null,"クラス",null,"出席\n番号",null,"I　　　D　　　番　　　号",null,null,null,null,null,null,null,null,null,null,null,null,null,null,null,null,null,null,"生　年　月　日",null,null,null,null,null,null,null,"性\n\n別"]
[null,null,null,null,null,null,null,null,null,null,"年",null,null,null,null,null,null,null,null,null,null,null,null,null,null,null,null,null,null,null,null,null,null,null,null,"年\n号"]
[]
[]
[null,null,null,null," 小学生",null,null,null,null,null,null,null,null,null,null,null,null,null,null,null,null,null,null,null,null,null,null,null,null,null,null,null,null,null,null,"昭\n和",null,null,null,null,null,null,null,"男"]
[null,null,null,null," 中学生"]
[null,null,null,null," 教員"]
[null,null,null,null," その他",null,null,null,null,null,null,null,null,null,null,null,null,null,null,null,null,null,null,null,null,null,null,null,null,null,null,null,null,null,null,null,null,null,null,null,null,null,null,"女"]
[null,null,null,null,null,null,null,null,null,null,null,null,null,null,null,null,null,null,null,null,null,null,null,null,null,null,null,null,null,null,null,null,null,null,null,"平成"]
[]
[]
[]
[]
[]
[]
[]
[null,null,null,null,"氏　　　　名"]
[]
[]
[]
[]
[]
[]
[]
[]
[]
[]
[]
[]
[]
[]
[]
[]
[]
[]
[]
[null,"No",39,"団体名",null,null,null,null,null,null,null,null,null,null,null,null,null,null,"所属",null,null,null,null,null,null,null,null,null,null,null,null,null,null,"氏名(漢字)",null,null,null,null,null,null,null,null,null,null,null,null,null,"氏名(カナ)",null,null,null,{"$f":"②入力シート!R50&\"　\"&②入力シート!S50&\"　\"&②入力シート!T50","v":"　　"}]
[]
[null,null,null,null,"個 人 属 性",null,null,null,null,"学年",null,"クラス",null,"出席\n番号",null,"I　　　D　　　番　　　号",null,null,null,null,null,null,null,null,null,null,null,null,null,null,null,null,null,null,"生　年　月　日",null,null,null,null,null,null,null,"性\n\n別"]
[null,null,null,null,null,null,null,null,null,null,"年",null,null,null,null,null,null,null,null,null,null,null,null,null,null,null,null,null,null,null,null,null,null,null,null,"年\n号"]
[]
[]
[null,null,null,null," 小学生",null,null,null,null,null,null,null,null,null,null,null,null,null,null,null,null,null,null,null,null,null,null,null,null,null,null,null,null,null,null,"昭\n和",null,null,null,null,null,null,null,"男"]
[null,null,null,null," 中学生"]
[null,null,null,null," 教員"]
[null,null,null,null," その他",null,null,null,null,null,null,null,null,null,null,null,null,null,null,null,null,null,null,null,null,null,null,null,null,null,null,null,null,null,null,null,null,null,null,null,null,null,null,"女"]
[null,null,null,null,null,null,null,null,null,null,null,null,null,null,null,null,null,null,null,null,null,null,null,null,null,null,null,null,null,null,null,null,null,null,null,"平成"]
[]
[]
[]
[]
[]
[]
[]
[null,null,null,null,"氏　　　　名"]
[]
[]
[]
[]
[]
[]
[]
[]
[]
[]
[]
[]
[]
[]
[]
[]
[]
[]
[]
[null,"No",40,"団体名",null,null,null,null,null,null,null,null,null,null,null,null,null,null,"所属",null,null,null,null,null,null,null,null,null,null,null,null,null,null,"氏名(漢字)",null,null,null,null,null,null,null,null,null,null,null,null,null,"氏名(カナ)",null,null,null,{"$f":"②入力シート!R51&\"　\"&②入力シート!S51&\"　\"&②入力シート!T51","v":"　　"}]
[]
[null,null,null,null,"個 人 属 性",null,null,null,null,"学年",null,"クラス",null,"出席\n番号",null,"I　　　D　　　番　　　号",null,null,null,null,null,null,null,null,null,null,null,null,null,null,null,null,null,null,"生　年　月　日",null,null,null,null,null,null,null,"性\n\n別"]
[null,null,null,null,null,null,null,null,null,null,"年",null,null,null,null,null,null,null,null,null,null,null,null,null,null,null,null,null,null,null,null,null,null,null,null,"年\n号"]
[]
[]
[null,null,null,null," 小学生",null,null,null,null,null,null,null,null,null,null,null,null,null,null,null,null,null,null,null,null,null,null,null,null,null,null,null,null,null,null,"昭\n和",null,null,null,null,null,null,null,"男"]
[null,null,null,null," 中学生"]
[null,null,null,null," 教員"]
[null,null,null,null," その他",null,null,null,null,null,null,null,null,null,null,null,null,null,null,null,null,null,null,null,null,null,null,null,null,null,null,null,null,null,null,null,null,null,null,null,null,null,null,"女"]
[null,null,null,null,null,null,null,null,null,null,null,null,null,null,null,null,null,null,null,null,null,null,null,null,null,null,null,null,null,null,null,null,null,null,null,"平成"]
[]
[]
[]
[]
[]
[]
[]
[null,null,null,null,"氏　　　　名"]
[]
[]
[]
[]
[]
[]
[]
[]
[]
[]
[]
[]
[]
[]
[]
[]
[]
[]
[]
[null,"No",41,"団体名",null,null,null,null,null,null,null,null,null,null,null,null,null,null,"所属",null,null,null,null,null,null,null,null,null,null,null,null,null,null,"氏名(漢字)",null,null,null,null,null,null,null,null,null,null,null,null,null,"氏名(カナ)",null,null,null,{"$f":"②入力シート!R52&\"　\"&②入力シート!S52&\"　\"&②入力シート!T52","v":"　　"}]
[]
[null,null,null,null,"個 人 属 性",null,null,null,null,"学年",null,"クラス",null,"出席\n番号",null,"I　　　D　　　番　　　号",null,null,null,null,null,null,null,null,null,null,null,null,null,null,null,null,null,null,"生　年　月　日",null,null,null,null,null,null,null,"性\n\n別"]
[null,null,null,null,null,null,null,null,null,null,"年",null,null,null,null,null,null,null,null,null,null,null,null,null,null,null,null,null,null,null,null,null,null,null,null,"年\n号"]
[]
[]
[null,null,null,null," 小学生",null,null,null,null,null,null,null,null,null,null,null,null,null,null,null,null,null,null,null,null,null,null,null,null,null,null,null,null,null,null,"昭\n和",null,null,null,null,null,null,null,"男"]
[null,null,null,null," 中学生"]
[null,null,null,null," 教員"]
[null,null,null,null," その他",null,null,null,null,null,null,null,null,null,null,null,null,null,null,null,null,null,null,null,null,null,null,null,null,null,null,null,null,null,null,null,null,null,null,null,null,null,null,"女"]
[null,null,null,null,null,null,null,null,null,null,null,null,null,null,null,null,null,null,null,null,null,null,null,null,null,null,null,null,null,null,null,null,null,null,null,"平成"]
[]
[]
[]
[]
[]
[]
[]
[null,null,null,null,"氏　　　　名"]
[]
[]
[]
[]
[]
[]
[]
[]
[]
[]
[]
[]
[]
[]
[]
[]
[]
[]
[]
[null,"No",42,"団体名",null,null,null,null,null,null,null,null,null,null,null,null,null,null,"所属",null,null,null,null,null,null,null,null,null,null,null,null,null,null,"氏名(漢字)",null,null,null,null,null,null,null,null,null,null,null,null,null,"氏名(カナ)",null,null,null,{"$f":"②入力シート!R53&\"　\"&②入力シート!S53&\"　\"&②入力シート!T53","v":"　　"}]
[]
[null,null,null,null,"個 人 属 性",null,null,null,null,"学年",null,"クラス",null,"出席\n番号",null,"I　　　D　　　番　　　号",null,null,null,null,null,null,null,null,null,null,null,null,null,null,null,null,null,null,"生　年　月　日",null,null,null,null,null,null,null,"性\n\n別"]
[null,null,null,null,null,null,null,null,null,null,"年",null,null,null,null,null,null,null,null,null,null,null,null,null,null,null,null,null,null,null,null,null,null,null,null,"年\n号"]
[]
[]
[null,null,null,null," 小学生",null,null,null,null,null,null,null,null,null,null,null,null,null,null,null,null,null,null,null,null,null,null,null,null,null,null,null,null,null,null,"昭\n和",null,null,null,null,null,null,null,"男"]
[null,null,null,null," 中学生"]
[null,null,null,null," 教員"]
[null,null,null,null," その他",null,null,null,null,null,null,null,null,null,null,null,null,null,null,null,null,null,null,null,null,null,null,null,null,null,null,null,null,null,null,null,null,null,null,null,null,null,null,"女"]
[null,null,null,null,null,null,null,null,null,null,null,null,null,null,null,null,null,null,null,null,null,null,null,null,null,null,null,null,null,null,null,null,null,null,null,"平成"]
[]
[]
[]
[]
[]
[]
[]
[null,null,null,null,"氏　　　　名"]
[]
[]
[]
[]
[]
[]
[]
[]
[]
[]
[]
[]
[]
[]
[]
[]
[]
[]
[]
[null,"No",43,"団体名",null,null,null,null,null,null,null,null,null,null,null,null,null,null,"所属",null,null,null,null,null,null,null,null,null,null,null,null,null,null,"氏名(漢字)",null,null,null,null,null,null,null,null,null,null,null,null,null,"氏名(カナ)",null,null,null,{"$f":"②入力シート!R54&\"　\"&②入力シート!S54&\"　\"&②入力シート!T54","v":"　　"}]
[]
[null,null,null,null,"個 人 属 性",null,null,null,null,"学年",null,"クラス",null,"出席\n番号",null,"I　　　D　　　番　　　号",null,null,null,null,null,null,null,null,null,null,null,null,null,null,null,null,null,null,"生　年　月　日",null,null,null,null,null,null,null,"性\n\n別"]
[null,null,null,null,null,null,null,null,null,null,"年",null,null,null,null,null,null,null,null,null,null,null,null,null,null,null,null,null,null,null,null,null,null,null,null,"年\n号"]
[]
[]
[null,null,null,null," 小学生",null,null,null,null,null,null,null,null,null,null,null,null,null,null,null,null,null,null,null,null,null,null,null,null,null,null,null,null,null,null,"昭\n和",null,null,null,null,null,null,null,"男"]
[null,null,null,null," 中学生"]
[null,null,null,null," 教員"]
[null,null,null,null," その他",null,null,null,null,null,null,null,null,null,null,null,null,null,null,null,null,null,null,null,null,null,null,null,null,null,null,null,null,null,null,null,null,null,null,null,null,null,null,"女"]
[null,null,null,null,null,null,null,null,null,null,null,null,null,null,null,null,null,null,null,null,null,null,null,null,null,null,null,null,null,null,null,null,null,null,null,"平成"]
[]
[]
[]
[]
[]
[]
[]
[null,null,null,null,"氏　　　　名"]
[]
[]
[]
[]
[]
[]
[]
[]
[]
[]
[]
[]
[]
[]
[]
[]
[]
[]
[]
[null,"No",44,"団体名",null,null,null,null,null,null,null,null,null,null,null,null,null,null,"所属",null,null,null,null,null,null,null,null,null,null,null,null,null,null,"氏名(漢字)",null,null,null,null,null,null,null,null,null,null,null,null,null,"氏名(カナ)",null,null,null,{"$f":"②入力シート!R55&\"　\"&②入力シート!S55&\"　\"&②入力シート!T55","v":"　　"}]
[]
[null,null,null,null,"個 人 属 性",null,null,null,null,"学年",null,"クラス",null,"出席\n番号",null,"I　　　D　　　番　　　号",null,null,null,null,null,null,null,null,null,null,null,null,null,null,null,null,null,null,"生　年　月　日",null,null,null,null,null,null,null,"性\n\n別"]
[null,null,null,null,null,null,null,null,null,null,"年",null,null,null,null,null,null,null,null,null,null,null,null,null,null,null,null,null,null,null,null,null,null,null,null,"年\n号"]
[]
[]
[null,null,null,null," 小学生",null,null,null,null,null,null,null,null,null,null,null,null,null,null,null,null,null,null,null,null,null,null,null,null,null,null,null,null,null,null,"昭\n和",null,null,null,null,null,null,null,"男"]
[null,null,null,null," 中学生"]
[null,null,null,null," 教員"]
[null,null,null,null," その他",null,null,null,null,null,null,null,null,null,null,null,null,null,null,null,null,null,null,null,null,null,null,null,null,null,null,null,null,null,null,null,null,null,null,null,null,null,null,"女"]
[null,null,null,null,null,null,null,null,null,null,null,null,null,null,null,null,null,null,null,null,null,null,null,null,null,null,null,null,null,null,null,null,null,null,null,"平成"]
[]
[]
[]
[]
[]
[]
[]
[null,null,null,null,"氏　　　　名"]
[]
[]
[]
[]
[]
[]
[]
[]
[]
[]
[]
[]
[]
[]
[]
[]
[]
[]
[]
[null,"No",45,"団体名",null,null,null,null,null,null,null,null,null,null,null,null,null,null,"所属",null,null,null,null,null,null,null,null,null,null,null,null,null,null,"氏名(漢字)",null,null,null,null,null,null,null,null,null,null,null,null,null,"氏名(カナ)",null,null,null,{"$f":"②入力シート!R56&\"　\"&②入力シート!S56&\"　\"&②入力シート!T56","v":"　　"}]
[]
[null,null,null,null,"個 人 属 性",null,null,null,null,"学年",null,"クラス",null,"出席\n番号",null,"I　　　D　　　番　　　号",null,null,null,null,null,null,null,null,null,null,null,null,null,null,null,null,null,null,"生　年　月　日",null,null,null,null,null,null,null,"性\n\n別"]
[null,null,null,null,null,null,null,null,null,null,"年",null,null,null,null,null,null,null,null,null,null,null,null,null,null,null,null,null,null,null,null,null,null,null,null,"年\n号"]
[]
[]
[null,null,null,null," 小学生",null,null,null,null,null,null,null,null,null,null,null,null,null,null,null,null,null,null,null,null,null,null,null,null,null,null,null,null,null,null,"昭\n和",null,null,null,null,null,null,null,"男"]
[null,null,null,null," 中学生"]
[null,null,null,null," 教員"]
[null,null,null,null," その他",null,null,null,null,null,null,null,null,null,null,null,null,null,null,null,null,null,null,null,null,null,null,null,null,null,null,null,null,null,null,null,null,null,null,null,null,null,null,"女"]
[null,null,null,null,null,null,null,null,null,null,null,null,null,null,null,null,null,null,null,null,null,null,null,null,null,null,null,null,null,null,null,null,null,null,null,"平成"]
[]
[]
[]
[]
[]
[]
[]
[null,null,null,null,"氏　　　　名"]
[]
[]
[]
[]
[]
[]
[]
[]
[]
[]
[]
[]
[]
[]
[]
[]
[]
[]
[]
[null,"No",46,"団体名",null,null,null,null,null,null,null,null,null,null,null,null,null,null,"所属",null,null,null,null,null,null,null,null,null,null,null,null,null,null,"氏名(漢字)",null,null,null,null,null,null,null,null,null,null,null,null,null,"氏名(カナ)",null,null,null,{"$f":"②入力シート!R57&\"　\"&②入力シート!S57&\"　\"&②入力シート!T57","v":"　　"}]
[]
[null,null,null,null,"個 人 属 性",null,null,null,null,"学年",null,"クラス",null,"出席\n番号",null,"I　　　D　　　番　　　号",null,null,null,null,null,null,null,null,null,null,null,null,null,null,null,null,null,null,"生　年　月　日",null,null,null,null,null,null,null,"性\n\n別"]
[null,null,null,null,null,null,null,null,null,null,"年",null,null,null,null,null,null,null,null,null,null,null,null,null,null,null,null,null,null,null,null,null,null,null,null,"年\n号"]
[]
[]
[null,null,null,null," 小学生",null,null,null,null,null,null,null,null,null,null,null,null,null,null,null,null,null,null,null,null,null,null,null,null,null,null,null,null,null,null,"昭\n和",null,null,null,null,null,null,null,"男"]
[null,null,null,null," 中学生"]
[null,null,null,null," 教員"]
[null,null,null,null," その他",null,null,null,null,null,null,null,null,null,null,null,null,null,null,null,null,null,null,null,null,null,null,null,null,null,null,null,null,null,null,null,null,null,null,null,null,null,null,"女"]
[null,null,null,null,null,null,null,null,null,null,null,null,null,null,null,null,null,null,null,null,null,null,null,null,null,null,null,null,null,null,null,null,null,null,null,"平成"]
[]
[]
[]
[]
[]
[]
[]
[null,null,null,null,"氏　　　　名"]
[]
[]
[]
[]
[]
[]
[]
[]
[]
[]
[]
[]
[]
[]
[]
[]
[]
[]
[]
[null,"No",47,"団体名",null,null,null,null,null,null,null,null,null,null,null,null,null,null,"所属",null,null,null,null,null,null,null,null,null,null,null,null,null,null,"氏名(漢字)",null,null,null,null,null,null,null,null,null,null,null,null,null,"氏名(カナ)",null,null,null,{"$f":"②入力シート!R58&\"　\"&②入力シート!S58&\"　\"&②入力シート!T58","v":"　　"}]
[]
[null,null,null,null,"個 人 属 性",null,null,null,null,"学年",null,"クラス",null,"出席\n番号",null,"I　　　D　　　番　　　号",null,null,null,null,null,null,null,null,null,null,null,null,null,null,null,null,null,null,"生　年　月　日",null,null,null,null,null,null,null,"性\n\n別"]
[null,null,null,null,null,null,null,null,null,null,"年",null,null,null,null,null,null,null,null,null,null,null,null,null,null,null,null,null,null,null,null,null,null,null,null,"年\n号"]
[]
[]
[null,null,null,null," 小学生",null,null,null,null,null,null,null,null,null,null,null,null,null,null,null,null,null,null,null,null,null,null,null,null,null,null,null,null,null,null,"昭\n和",null,null,null,null,null,null,null,"男"]
[null,null,null,null," 中学生"]
[null,null,null,null," 教員"]
[null,null,null,null," その他",null,null,null,null,null,null,null,null,null,null,null,null,null,null,null,null,null,null,null,null,null,null,null,null,null,null,null,null,null,null,null,null,null,null,null,null,null,null,"女"]
[null,null,null,null,null,null,null,null,null,null,null,null,null,null,null,null,null,null,null,null,null,null,null,null,null,null,null,null,null,null,null,null,null,null,null,"平成"]
[]
[]
[]
[]
[]
[]
[]
[null,null,null,null,"氏　　　　名"]
[]
[]
[]
[]
[]
[]
[]
[]
[]
[]
[]
[]
[]
[]
[]
[]
[]
[]
[]
[null,"No",48,"団体名",null,null,null,null,null,null,null,null,null,null,null,null,null,null,"所属",null,null,null,null,null,null,null,null,null,null,null,null,null,null,"氏名(漢字)",null,null,null,null,null,null,null,null,null,null,null,null,null,"氏名(カナ)",null,null,null,{"$f":"②入力シート!R59&\"　\"&②入力シート!S59&\"　\"&②入力シート!T59","v":"　　"}]
[]
[null,null,null,null,"個 人 属 性",null,null,null,null,"学年",null,"クラス",null,"出席\n番号",null,"I　　　D　　　番　　　号",null,null,null,null,null,null,null,null,null,null,null,null,null,null,null,null,null,null,"生　年　月　日",null,null,null,null,null,null,null,"性\n\n別"]
[null,null,null,null,null,null,null,null,null,null,"年",null,null,null,null,null,null,null,null,null,null,null,null,null,null,null,null,null,null,null,null,null,null,null,null,"年\n号"]
[]
[]
[null,null,null,null," 小学生",null,null,null,null,null,null,null,null,null,null,null,null,null,null,null,null,null,null,null,null,null,null,null,null,null,null,null,null,null,null,"昭\n和",null,null,null,null,null,null,null,"男"]
[null,null,null,null," 中学生"]
[null,null,null,null," 教員"]
[null,null,null,null," その他",null,null,null,null,null,null,null,null,null,null,null,null,null,null,null,null,null,null,null,null,null,null,null,null,null,null,null,null,null,null,null,null,null,null,null,null,null,null,"女"]
[null,null,null,null,null,null,null,null,null,null,null,null,null,null,null,null,null,null,null,null,null,null,null,null,null,null,null,null,null,null,null,null,null,null,null,"平成"]
[]
[]
[]
[]
[]
[]
[]
[null,null,null,null,"氏　　　　名"]
[]
[]
[]
[]
[]
[]
[]
[]
[]
[]
[]
[]
[]
[]
[]
[]
[]
[]
[]
[null,"No",49,"団体名",null,null,null,null,null,null,null,null,null,null,null,null,null,null,"所属",null,null,null,null,null,null,null,null,null,null,null,null,null,null,"氏名(漢字)",null,null,null,null,null,null,null,null,null,null,null,null,null,"氏名(カナ)",null,null,null,{"$f":"②入力シート!R60&\"　\"&②入力シート!S60&\"　\"&②入力シート!T60","v":"　　"}]
[]
[null,null,null,null,"個 人 属 性",null,null,null,null,"学年",null,"クラス",null,"出席\n番号",null,"I　　　D　　　番　　　号",null,null,null,null,null,null,null,null,null,null,null,null,null,null,null,null,null,null,"生　年　月　日",null,null,null,null,null,null,null,"性\n\n別"]
[null,null,null,null,null,null,null,null,null,null,"年",null,null,null,null,null,null,null,null,null,null,null,null,null,null,null,null,null,null,null,null,null,null,null,null,"年\n号"]
[]
[]
[null,null,null,null," 小学生",null,null,null,null,null,null,null,null,null,null,null,null,null,null,null,null,null,null,null,null,null,null,null,null,null,null,null,null,null,null,"昭\n和",null,null,null,null,null,null,null,"男"]
[null,null,null,null," 中学生"]
[null,null,null,null," 教員"]
[null,null,null,null," その他",null,null,null,null,null,null,null,null,null,null,null,null,null,null,null,null,null,null,null,null,null,null,null,null,null,null,null,null,null,null,null,null,null,null,null,null,null,null,"女"]
[null,null,null,null,null,null,null,null,null,null,null,null,null,null,null,null,null,null,null,null,null,null,null,null,null,null,null,null,null,null,null,null,null,null,null,"平成"]
[]
[]
[]
[]
[]
[]
[]
[null,null,null,null,"氏　　　　名"]
[]
[]
[]
[]
[]
[]
[]
[]
[]
[]
[]
[]
[]
[]
[]
[]
[]
[]
[]
[null,"No",50,"団体名",null,null,null,null,null,null,null,null,null,null,null,null,null,null,"所属",null,null,null,null,null,null,null,null,null,null,null,null,null,null,"氏名(漢字)",null,null,null,null,null,null,null,null,null,null,null,null,null,"氏名(カナ)",null,null,null,{"$f":"②入力シート!R61&\"　\"&②入力シート!S61&\"　\"&②入力シート!T61","v":"　　"}]
[]
[null,null,null,null,"個 人 属 性",null,null,null,null,"学年",null,"クラス",null,"出席\n番号",null,"I　　　D　　　番　　　号",null,null,null,null,null,null,null,null,null,null,null,null,null,null,null,null,null,null,"生　年　月　日",null,null,null,null,null,null,null,"性\n\n別"]
[null,null,null,null,null,null,null,null,null,null,"年",null,null,null,null,null,null,null,null,null,null,null,null,null,null,null,null,null,null,null,null,null,null,null,null,"年\n号"]
[]
[]
[null,null,null,null," 小学生",null,null,null,null,null,null,null,null,null,null,null,null,null,null,null,null,null,null,null,null,null,null,null,null,null,null,null,null,null,null,"昭\n和",null,null,null,null,null,null,null,"男"]
[null,null,null,null," 中学生"]
[null,null,null,null," 教員"]
[null,null,null,null," その他",null,null,null,null,null,null,null,null,null,null,null,null,null,null,null,null,null,null,null,null,null,null,null,null,null,null,null,null,null,null,null,null,null,null,null,null,null,null,"女"]
[null,null,null,null,null,null,null,null,null,null,null,null,null,null,null,null,null,null,null,null,null,null,null,null,null,null,null,null,null,null,null,null,null,null,null,"平成"]
[]
[]
[]
[]
[]
[]
[]
[null,null,null,null,"氏　　　　名"]